Cogmind - Beta 13 X1 @@@ ROGUE MODE // 2023.11.29 @ 19:09:30 Player: Plexion Result: Escaped singularity! Performance ------------- Evolutions (9) 4500 Regions Visited (40) 8000 Robots Destroyed (488) 2440 Value Destroyed (22210) 22210 Prototype IDs (290) 5800 Alien Tech Used (16) 3200 Bonus (54431) 54431 TOTAL SCORE: 100581 Bonus ------- High Alert Combat Kills 1811 Follower Combat Kills 5163 Network Hubs Disabled 200 Met Data Miner 300 Met Imprinter 300 Built Enhanced Grunts 300 Found Hidden Lab 3000 Used Core Reset Matrix 3000 Met R17 at Research 2000 Destroyed MAIN.C Guards 500 Met MAIN.C 5000 Destroyed MAIN.C Shell 5000 Destroyed MAIN.C 10000 Met Architect 300 Destroyed A8 300 Destroyed A6 400 Destroyed A5 500 Destroyed Architect 15000 Win 3000 Friendly Fire -1643 Cogmind --------- Core Integrity 1344/1850 Matter 137/300 Energy 283/520 System Corruption 0% Temperature Cool (28) Movement Hovering (47) Location Near Former Tau Ceti IV Parts ------- > --- POWER (3) -------- Zero-point Reactor Zero-point Reactor Zero-point Reactor > --- PROPULSION (9) --- Combat Antigrav System Combat Antigrav System Combat Antigrav System Combat Antigrav System Combat Antigrav System Combat Linear Gravjet Combat Linear Gravjet Combat Linear Gravjet Combat Linear Gravjet > --- UTILITY (12) ----- Medium Storage Unit Experimental Core Analyzer Quantum Capacitor Advanced Reaction Control System Experimental Phase Shifter Improved Utility Shielding Centrium Medium Armor Plating Heavy Regenerative Plating AEGIS Remote Shield > --- WEAPON (2) ------- Sigix Shearcannon > --- INVENTORY (10) --- Combat Antigrav System Experimental Power Amplifier Experimental Energy Well (600) Experimental EM Disruption Field AEGIS Remote Shield Sigix Shearcannon Hypervelocity Multirail Sigix Broadsword Peak State ------------ > --- POWER ------------ Micro Antimatter Reactor Zero-point Reactor Zero-point Reactor > --- PROPULSION ------- Combat Antigrav System Combat Antigrav System Combat Antigrav System Combat Linear Gravjet Combat Linear Gravjet Combat Linear Gravjet Combat Linear Gravjet Combat Linear Gravjet Combat Linear Gravjet > --- UTILITY ---------- Experimental Cooling System High-capacity Storage Unit Experimental Terrain Scan Processor Advanced Transmission Jammer Centrium Medium Armor Plating Heavy Regenerative Plating Experimental EM Disruption Field Improved Hacking Suite Advanced Hacking Suite Microwarp Drive > --- WEAPON ----------- Core Stripper > --- INVENTORY -------- Combat Linear Gravjet Large Storage Unit Advanced Energy Well Advanced Terrain Scanner Quantum Capacitor AEGIS Remote Shield High-powered Transdimensional Reconstructor Core Regenerator Subatomic Replicator Spacefold Activator Enhanced Nova Cannon Enhanced Nova Cannon Warp Cannon Sigix Shearcannon Hypervelocity Multirail Sigix Broadsword [Rating: 251] Favorites ----------- Power Zero-point Reactor Engine Improved Ion Engine Power Core Fission Core Reactor Zero-point Reactor Propulsion Combat Antigrav System Treads Light Treads Leg Advanced Myomer Leg Wheel Wheel Hover Unit Combat Antigrav System Flight Unit Improved VTOL Module Utility Improved Hacking Suite Device Experimental Sensor Array Storage High-capacity Storage Unit Processor Advanced Signal Interpreter Hackware Improved Hacking Suite Protection Centrium Medium Armor Plating Artifact Microwarp Drive Weapon CR-A16's Pointy Stick Energy Gun EM Pulse Gun Energy Cannon Neutron Cannon Ballistic Gun Improved Assault Rifle Ballistic Cannon Advanced Assault Cannon Launcher Mini Grenade Launcher Special Weapon Advanced Remote Datajack Impact Weapon Core Stripper Slashing Weapon Chainsword Piercing Weapon CR-A16's Pointy Stick Build | -11 -10 -10 -9 -9 -9 -8 -8 -8 -7 -7 -7 -7 -7 -7 -6 -6 -6 -6 -6 -6 -6 -5 -5 -5 -5 -5 -5 -4 -4 -4 -4 -4 -3 -3 -2 -2 -2 -1 -1 -1 ------- Run | Jun Mat Min Mat Min Exi Min Mat Sto Fac Was Fac Low Low Dat Pro Fac Was Fac Low Low Zio Pro Fac Ext Cet Arc Hub Fac Was Fac Arm Lab Res Tes Res Qua Sec Acc Com Ac0 Slots Evolved 18 | . . . 2 . . . 2 . 2 . . . . . . 2 . . . . . . 2 . . . . 2 . . . . 2 . 2 . . 2 . . Power 2 | . . . . . . . . . . . . . . . . . . . . . . . . . . . . 1 . . . . 1 . . . . . . . Propulsion 6 | . . . 1 . . . . . 1 . . . . . . . . . . . . . 1 . . . . 1 . . . . . . 1 . . 1 . . Utility 10 | . . . 1 . . . 2 . 1 . . . . . . 2 . . . . . . 1 . . . . . . . . . 1 . 1 . . 1 . . Weapon . | . . . . . . . . . . . . . . . . . . . . . . . . . . . . . . . . . . . . . . . . . Parts Attached 964 | 7 7 10 29 2 23 6 31 21 54 . 5 3 8 1 15 41 3 10 2 1 13 2 15 8 12 2 30 83 23 50 72 9 14 33 39 22 63 55 98 42 Power 55 | 1 2 2 2 1 3 . . 1 3 . . 2 . . 1 1 1 1 . . . . . . . . 1 4 . 1 5 2 2 1 . 1 4 2 10 1 Engine 12 | 1 2 2 2 1 1 . . 1 1 . . . . . . . . . . . . . . . . . . . . . . . . . . . 1 . . . Core 13 | . . . . . 2 . . . 2 . . 2 . . 1 1 1 1 . . . . . . . . 1 2 . . . . . . . . . . . . Reactor 30 | . . . . . . . . . . . . . . . . . . . . . . . . . . . . 2 . 1 5 2 2 1 . 1 3 2 10 1 Propulsion 125 | 2 2 1 7 . 6 . 14 5 18 . . . . . . 1 1 2 1 . 4 . 1 . . . 2 4 12 . 7 1 2 3 7 . 2 6 12 2 Treads 28 | 2 2 1 7 . 4 . 8 1 . . . . . . . . . . . . . . . . . . . . 3 . . . . . . . . . . . Leg 5 | . . . . . 2 . 2 1 . . . . . . . . . . . . . . . . . . . . . . . . . . . . . . . . Wheel 1 | . . . . . . . . 1 . . . . . . . . . . . . . . . . . . . . . . . . . . . . . . . . Hover 77 | . . . . . . . . 2 8 . . . . . . 1 1 2 1 . 4 . 1 . . . 2 4 9 . 7 1 2 3 7 . 2 6 12 2 Flight 14 | . . . . . . . 4 . 10 . . . . . . . . . . . . . . . . . . . . . . . . . . . . . . . Utility 447 | 1 3 1 7 1 9 2 7 3 17 . 5 . 4 . 6 31 1 6 1 1 5 2 10 5 11 2 17 49 7 33 44 5 10 16 19 10 22 19 49 6 Device 280 | . . . 3 . 3 . . 1 5 . 2 . 3 . 3 17 1 4 1 1 5 2 6 3 5 1 9 35 5 27 35 3 9 13 14 5 16 13 26 4 Storage 22 | 1 1 . . . 1 . . . 2 . . . . . . 1 . . . . . . 1 . 1 . . 2 . . . 1 . . 1 . . . 10 . Processor 15 | . . . 1 . 1 1 3 . . . . . . . . 1 . 1 . . . . . . . . 2 2 . . . . . 1 . . . 1 1 . Hackware 32 | . . . . . . . . . 7 . 2 . . . . 9 . 1 . . . . 3 . 1 . . 3 . . 3 1 . . 1 . . 1 . . Protection 92 | . 2 1 3 1 4 1 4 2 3 . 1 . 1 . 3 3 . . . . . . . 2 4 1 6 7 2 6 6 . 1 2 3 5 2 4 10 2 Artifact 6 | . . . . . . . . . . . . . . . . . . . . . . . . . . . . . . . . . . . . . 4 . 2 . Weapon 337 | 3 . 6 13 . 5 4 10 12 16 . . 1 4 1 8 8 . 1 . . 4 . 4 3 1 . 10 26 4 16 16 1 . 13 13 11 35 28 27 33 Energy Gun 3 | 1 . 1 1 . . . . . . . . . . . . . . . . . . . . . . . . . . . . . . . . . . . . . Energy Cannon 122 | . . . . . . . . . . . . . . . 1 . . 1 . . 1 . 1 1 . . 4 11 2 8 10 1 . 9 9 4 16 13 14 16 Ballistic Gun 76 | 2 . 3 9 . 2 3 7 7 6 . . . 1 . 3 4 . . . . 1 . . . . . 1 8 . . . . . 3 4 1 4 . 4 3 Ballistic Cannon 24 | . . 2 . . . . . . 1 . . . 1 . 3 4 . . . . . . 1 1 1 . . 3 1 4 2 . . . . . . . . . Launcher 22 | . . . 1 . 1 1 3 4 3 . . 1 1 1 1 . . . . . . . . . . . 3 . . . . . . 1 . . . 1 . . Special Weapon 2 | . . . . . . . . . . . . . . . . . . . . . . . . . . . . . . . . . . . . . . 2 . . Impact Weapon 3 | . . . . . . . . . . . . . . . . . . . . . . . . . . . . . . . . . . . . . . . 3 . Slashing Weapon 68 | . . . 2 . 2 . . 1 6 . . . 1 . . . . . . . 1 . . 1 . . 1 . . . . . . . . 6 15 12 6 14 Piercing Weapon 17 | . . . . . . . . . . . . . . . . . . . . . 1 . 2 . . . 1 4 1 4 4 . . . . . . . . . Special Melee Weapon . | . . . . . . . . . . . . . . . . . . . . . . . . . . . . . . . . . . . . . . . . . Unidentified Prototypes 28 | . . . 2 . 6 . 2 . . . . . . . 1 . . . . . . . . . 4 . 2 . . . . 3 1 1 . 1 1 . 3 1 Corrupted Parts 3 | . . . . . 1 . . . . . . . . . . . . . . . . . . . . . . . . . . . . . . . . . 2 . System Corruption 16 | . . . . . 1 . . . . . . . . . . . . . . . . . . . . . . . . . . . . . . . . . 15 . Parts Lost 36 | . . 3 3 1 5 . 2 5 . . . . . . . . 1 1 . . . . . . . . 7 1 . . 2 . . . . 1 3 . . 1 Power 5 | . . . . . . . . 1 . . . . . . . . 1 . . . . . . . . . 1 . . . . . . . . . 2 . . . Propulsion 8 | . . 1 1 . 4 . 1 1 . . . . . . . . . . . . . . . . . . . . . . . . . . . . . . . . Utility 15 | . . 1 1 1 1 . 1 2 . . . . . . . . . . . . . . . . . . 5 . . . 1 . . . . 1 . . . 1 Weapon 8 | . . 1 1 . . . . 1 . . . . . . . . . 1 . . . . . . . . 1 1 . . 1 . . . . . 1 . . . Highest Loss Streak 6 | . . 1 1 1 2 . 2 2 . . . . . . . . 1 1 . . . . . . . . 6 1 . . 2 . . . . 1 1 . . 1 To Critical Strikes 4 | . . . . . 3 . . . . . . . . . . . . . . . . . . . . . . . . . . . . . . . 1 . . . Average Slot Usage (%) 94 | . 97 95 97 100 99 100 90 91 94 100 99 100 100 100 100 92 91 92 93 93 91 93 93 93 90 94 94 99 99 98 97 64 95 99 91 94 89 90 87 87 Engine 1 | . 13 14 11 11 8 . . 1 2 . . . . . . . . . . . . . . . . . . . . . . . . . . . . . . . Core 3 | . . . . . 2 11 9 7 4 7 7 7 7 7 7 6 6 6 6 6 6 6 5 5 5 5 4 4 5 . . . . . . . . . . . Reactor 3 | . . . . . . . . . . . . . . . . . . . . . . . . . . . . 4 5 9 9 1 9 13 8 10 10 10 11 11 Treads 5 | . 27 27 30 33 30 33 22 17 . . . . . . . . . . . . . . . . . . . . . . . . . . . . . . . . Hover 22 | . . . . . . . . 2 5 30 30 30 30 30 30 26 26 26 26 26 26 26 29 29 29 29 28 30 30 31 30 30 30 30 33 33 32 33 33 34 Flight 1 | . . . . . . . . . 24 . . . . . . . . . . . . . . . . . . . . . . . . . . . . . . . Device 8 | . . . 8 4 . . . 1 7 7 5 7 6 7 6 10 11 8 13 13 12 13 10 10 7 11 4 5 3 9 12 1 12 12 10 11 11 14 13 18 Storage 6 | . 14 14 11 11 11 11 9 9 6 7 7 7 7 7 7 6 6 6 6 6 6 6 5 5 5 5 5 5 5 5 5 . 4 4 4 4 4 3 6 3 Processor 7 | . . . . . 7 6 17 18 7 7 7 7 7 7 7 6 6 10 6 6 6 6 5 5 5 5 5 14 15 15 12 10 9 9 8 8 8 6 3 3 Hackware 13 | . . . . . . . . . 19 15 22 23 23 23 23 21 20 20 20 20 20 20 23 23 23 23 21 20 20 15 15 15 18 18 14 15 12 10 . . Protection 4 | . 11 10 12 17 14 15 10 11 1 7 1 . . . . . . . . . . . . . 4 5 9 . 2 . . . . . 3 3 2 3 11 11 Energy Cannon 1 | . . . . . . . . . . . . . . . . . . 2 6 6 5 6 4 4 . . . 4 4 4 4 . 4 2 3 1 1 . 1 . Ballistic Gun 4 | . 28 26 21 22 11 22 17 16 3 . . . 3 7 2 . . . . . 2 6 . . . . 2 . . . . . . 1 . . . . . . Ballistic Cannon 1 | . . 1 . . . . . . . 7 7 7 3 . 3 5 6 3 . . . . . . 4 5 . . . . . . . . . . . . . . Slashing Weapon 2 | . . . . . 10 . . . 6 7 7 7 6 7 7 6 6 6 6 6 1 . . . . . 3 . . . . . . . . 2 2 2 1 1 Piercing Weapon 1 | . . . . . . . . . . . . . . . . . . . . . 2 . 3 3 . . . 4 4 4 4 5 4 4 4 1 . . . . Naked Turns . | . . . . . . . . . . . . . . . . . . . . . . . . . . . . . . . . . . . . . . . . . Heaviest Build 145 | 13 30 36 40 41 73 84 82 83 61 61 61 61 62 58 64 70 50 55 58 58 58 58 78 81 81 80 80 89 86 94 96 84 99 107 119 116 126 138 145 139 Greatest Support 161 | 40 40 40 63 63 63 60 62 62 64 64 64 64 64 64 64 64 64 64 64 64 64 64 80 80 80 80 80 96 96 94 94 104 104 104 120 118 118 132 161 136 Greatest Overweight (x) 26 | . 1 1 1 . 2 1 2 26 . . . . . . . 1 . 1 . . . . . 1 1 25 1 1 1 . 1 . . 1 1 . 1 1 1 1 Average Overweight (x) . | . . . . . . 1 1 2 . . . . . . . . . . . . . . . . . 22 . . . . . . . . . . . . . . Largest Inventory Capacity 20 | 8 15 15 15 15 20 20 20 20 20 20 20 20 20 20 20 20 15 15 15 15 15 15 20 20 20 20 20 20 20 20 20 20 20 20 20 20 20 20 20 10 Average Capacity 17 | 7 13 15 15 15 19 20 20 20 11 20 20 20 20 20 20 16 15 15 15 15 15 15 17 20 20 20 20 20 20 20 20 6 20 20 20 20 20 20 11 10 Most Carried 20 | 2 4 9 15 15 20 20 20 20 20 20 20 20 20 20 20 20 15 15 15 15 15 15 20 20 20 20 20 20 20 20 20 20 20 20 20 20 20 20 20 10 Average Carried 16 | . 2 5 14 14 17 20 19 19 9 18 19 19 19 20 19 16 14 14 14 14 14 14 15 19 19 20 19 19 19 19 18 4 19 19 19 19 19 18 11 9 Final Capacity 20 | 8 15 15 15 15 20 20 20 20 20 20 20 20 20 20 20 15 15 15 15 15 15 15 20 20 20 20 20 20 20 20 20 20 20 20 20 20 20 20 10 10 Final Carried 20 | 2 2 9 15 14 20 20 20 20 17 20 20 20 20 20 20 15 14 15 15 15 15 15 20 20 20 20 20 18 20 20 17 20 19 20 20 19 20 18 10 10 Class Distribution -------------------- 49% | Hacker-Mutant 13% | Scavenger-Mutant 8% | Mutant 7% | Alien-Mutant 4% | Hacker-Sprinter 4% | Hacker-Scout 3% | Wizard-Scout 3% | Wizard-Mutant Dominant Class ---------------- Mutant | -10/Materials Mutant | -10/Mines Scavenger-Mutant | -9/Materials Mutant | -9/Mines Scavenger-Mutant | -9/Exiles Scavenger-Mutant | -8/Mines Mutant | -8/Materials Mutant | -8/Storage Hacker-Sprinter | -7/Factory Machinist-Mutant | -7/Waste Hacker-Mutant | -7/Factory Hacker-Mutant | -7/Lower Caves Hacker-Mutant | -7/Lower Caves Hacker-Mutant | -7/Data Miner Hacker-Mutant | -6/Proximity Caves Hacker-Mutant | -6/Factory Hacker-Mutant | -6/Waste Hacker-Mutant | -6/Factory Hacker-Mutant | -6/Lower Caves Hacker-Mutant | -6/Lower Caves Hacker-Mutant | -6/Zion Hacker-Mutant | -5/Proximity Caves Hacker-Mutant | -5/Factory Hacker-Mutant | -5/Extension Hacker-Mutant | -5/Cetus Hacker-Mutant | -5/Archives Hacker-Mutant | -5/Hub_04(d) Hacker-Mutant | -4/Factory Hacker-Mutant | -4/Waste Hacker-Mutant | -4/Factory Hacker-Mutant | -4/Armory Hacker-Mutant | -4/Lab Wizard-Scout | -3/Research Wizard-Mutant | -3/Testing Wizard-Mutant | -2/Research Wizard-Scout | -2/Quarantine Hacker-Scout | -2/Section 7 Hacker-Ninja | -1/Access Alien-Mutant | -1/Command Alien-Mutant | -1/Access_0 Resources | -11 -10 -10 -9 -9 -9 -8 -8 -8 -7 -7 -7 -7 -7 -7 -6 -6 -6 -6 -6 -6 -6 -5 -5 -5 -5 -5 -5 -4 -4 -4 -4 -4 -3 -3 -2 -2 -2 -1 -1 -1 ----------- Run | Jun Mat Min Mat Min Exi Min Mat Sto Fac Was Fac Low Low Dat Pro Fac Was Fac Low Low Zio Pro Fac Ext Cet Arc Hub Fac Was Fac Arm Lab Res Tes Res Qua Sec Acc Com Ac0 Matter Collected 15638 | 173 181 220 863 69 612 229 729 578 862 90 182 30 467 . 413 833 94 298 117 55 65 85 99 211 344 106 610 1313 250 870 802 . 342 434 450 17 950 275 1161 159 Remotely 481 | . . . . . . . . . . . . . 49 . . . . . . . . . . . 178 . . . . 98 156 . . . . . . . . . Salvage Created 25270 | . 241 143 1376 44 591 353 1293 667 1064 45 218 70 154 . 278 415 . 138 63 . . . 77 87 133 . 1043 1476 260 846 741 . 413 1595 1316 222 2039 1396 4714 1759 Parts 1383 | . 15 10 85 5 79 30 73 40 69 4 18 2 11 . 7 29 . 11 1 . . . 9 . 5 . 77 102 11 32 40 . 15 99 54 9 81 84 186 90 Haulers Intercepted 13 | . . . 5 . . . 2 1 1 . 1 . . . . . . . . . . . . . . . . . . . . . 1 1 . . . 1 . . Recyclers Shooed 15 | . . . 3 . . 3 5 . 2 . . . . . . . . . . . . . . . . . . . . 1 . . . . . . . . 1 . Parts Field Recycled . | . . . . . . . . . . . . . . . . . . . . . . . . . . . . . . . . . . . . . . . . . Retrieved Matter . | . . . . . . . . . . . . . . . . . . . . . . . . . . . . . . . . . . . . . . . . . Parts Self-Destructed 109 | . . . . . . . . . . . . 7 16 . 6 . . . 26 22 . 32 . . . . . . . . . . . . . . . . . . Prevented 5 | . . . . . . . . . . . . 1 . . 3 . . . . . . 1 . . . . . . . . . . . . . . . . . . Kills | -11 -10 -10 -9 -9 -9 -8 -8 -8 -7 -7 -7 -7 -7 -7 -6 -6 -6 -6 -6 -6 -6 -5 -5 -5 -5 -5 -5 -4 -4 -4 -4 -4 -3 -3 -2 -2 -2 -1 -1 -1 ------- Run | Jun Mat Min Mat Min Exi Min Mat Sto Fac Was Fac Low Low Dat Pro Fac Was Fac Low Low Zio Pro Fac Ext Cet Arc Hub Fac Was Fac Arm Lab Res Tes Res Qua Sec Acc Com Ac0 Combat Hostiles Destroyed 324 | . 7 3 25 3 3 14 24 16 9 . 2 2 4 . 12 5 . 4 1 . . . . 3 5 . 14 22 . 18 15 . . 19 11 1 24 15 26 17 Melee 23 | . . . . . 1 . . . . . . . . . 1 3 . 1 . . . . . . . . . 1 . . 1 . . 1 . . 2 7 5 . Guns 147 | . 7 3 23 3 . 10 14 12 6 . . . 1 . 2 . . . . . . . . . . . 9 9 . . . . . 12 10 1 9 . 8 8 Cannons 74 | . . . . . . . . . . . 2 2 . . . 2 . 2 1 . . . . 3 5 . . 10 . 14 11 . . 1 . . 2 4 6 9 AOE 49 | . . . 2 . 2 4 10 4 3 . . . 3 . 9 . . 1 . . . . . . . . 5 . . . . . . 4 . . 2 . . . Classes Destroyed 28 | . 3 2 3 . 3 1 3 . 1 1 . 1 1 . . 1 . . . . . . . . . . 2 . . . 1 . . 1 . . 2 1 1 . Worker 38 | . . . 1 . . 2 . 1 4 . 1 . . . . 4 . 2 . . . . 2 . . . 8 5 . . . . 1 . 3 . . 2 2 . Builder 33 | . . 1 1 . . 1 . . 1 . 4 . . . . 1 . . . . . . . . . . 3 6 . . . . . 8 3 . 2 2 . . Tunneler 3 | . . . . . . . 1 . . . . . . . . . . . . . . . . . . . . 1 . . . . 1 . . . . . . . Hauler 13 | . . . 5 . . . 2 1 1 . 1 . . . . . . . . . . . . . . . . . . . . . 1 1 . . . 1 . . Recycler 23 | . . . . . . . 3 . 3 . . . . . . 1 . . . . . . . . . . . 2 . 1 . . 2 1 2 1 2 . 5 . Minesweeper 1 | . . . . . . . . . . . . . 1 . . . . . . . . . . . . . . . . . . . . . . . . . . . Mechanic 1 | . . . . . . . . . . . . . . . . 1 . . . . . . . . . . . . . . . . . . . . . . . . Operator 9 | . . . . . . . . . 2 . . . . . . . . 1 . . . . 2 . . . . 1 . . 1 . . . . . 2 . . . Turret 1 | . . . . . 1 . . . . . . . . . . . . . . . . . . . . . . . . . . . . . . . . . . . Watcher 29 | . 1 . 3 . . . 2 . 6 . . . . . . 2 . . . . . . . . 1 . 1 2 . . 3 . 1 2 1 1 1 1 1 . Swarmer 73 | . 3 . 3 3 . 10 3 3 3 . 1 . 3 . 7 . . 2 . . . . . . . . . 13 . 8 4 . . 5 . 1 . . 1 . Cutter 9 | . . . . . . . . . . . . . . . . . . . . . . . . . . . 5 . . . . . . . . . 4 . . . Saboteur 1 | . . . . . . . . . . . . . . . . . . . . . . . . . . . . . . . 1 . . . . . . . . . Grunt 67 | . 4 1 13 . . 3 10 7 2 . . . . . 4 . . . 1 . . . . 2 . . . 2 . 3 . . . 4 . . 9 2 . . Brawler 3 | . . . . . . . 1 . 1 . . . . . . . . . . . . . . . . . . . . . . . . 1 . . . . . . Duelist 7 | . . . 3 . . . 3 1 . . . . . . . . . . . . . . . . . . . . . . . . . . . . . . . . Protector 1 | . . . . . . . . . . . . . . . . . . . . . . . . . . . 1 . . . . . . . . . . . . . Researcher 1 | . . . . . . . . . . . . . . . . . . . . . . . . . . . . . . . . . . 1 . . . . . . Sentry 39 | . . 2 6 . . . 7 4 3 . 1 . 1 . 1 1 . . . . . . . 1 . . . 1 . 3 2 . . . 1 . 2 2 1 . Hunter 20 | . . . . . . 1 . 1 . . . . . . . . . . . . . . . . 1 . . 4 . . . . . . 6 . . 3 4 . Programmer 61 | . . . . . . . . . . . . 1 . . . 4 . 2 . . . . . . 1 . 2 2 . 4 8 . . 8 4 . 5 7 13 . Heavy 1 | . . . . . . . . . . . . . . . . . . . . . . . . . . . . . . . . . . . . . . . 1 . Behemoth 1 | . . . . . . . . . . . . . . . . . . . . . . . . . . . . . . . . . . . . . . 1 . . Cetus Guard 3 | . . . . . . . . . . . . . . . . . . . . . . . . . 3 . . . . . . . . . . . . . . . S7 Guard 2 | . . . . . . . . . . . . . . . . . . . . . . . . . . . . . . . . . . . . . 2 . . . M Guard 2 | . . . . . . . . . . . . . . . . . . . . . . . . . . . . . . . . . . . . . . . 2 . Enhanced Grunt 8 | . . . . . . . . . . . . . . . . . . . . . . . . . . . . . . . . . . . . . . . . 8 Enhanced Sentry 1 | . . . . . . . . . . . . . . . . . . . . . . . . . . . . . . . . . . . . . . . . 1 Enhanced Hunter 4 | . . . . . . . . . . . . . . . . . . . . . . . . . . . . . . . . . . . . . . . . 4 Lightning 6 | . . . . . . . . . . . . . . . . . . . . . . . . . . . 6 . . . . . . . . . . . . . Combat Programmer 2 | . . . . . . . . . . . . . . . . . . . . . . . . . . . . . . . . . . . . . . . 2 . Striker 1 | . . . . . . . . . . . . . . . . . . . . . . . . . . . . . . . . . . . . . 1 . . . Alpha 7 1 | . . . . . . . . . . . . . . . . . . . . . . . . . . . . . . . . . . . . . 1 . . . Protovariant P 1 | . . . . . . . . . . . . . . . . . . . . . . . . . . . . . . . . . . 1 . . . . . . Zionite 8 | . . . . . 8 . . . . . . . . . . . . . . . . . . . . . . . . . . . . . . . . . . . Decomposer 3 | . . . . . . . . . . . . . 1 . 2 . . . . . . . . . . . . . . . . . . . . . . . . . Assembled 2 | . . . . . 2 . . . . . . . . . . . . . . . . . . . . . . . . . . . . . . . . . . . Savage 1 | . . . . . . . . . . . . 1 . . . . . . . . . . . . . . . . . . . . . . . . . . . . Martyr 4 | . . . . . . . . . . 1 . . . . . . . . . . . . . . . . . . 3 . . . . . . . . . . . Best Kill Streak 7 | . 3 1 5 2 4 6 6 5 4 . 3 1 3 . 6 2 . 3 1 . . . 2 3 3 . 6 7 . 6 6 . 2 6 6 1 7 3 5 5 Combat Bots Only 7 | . 3 1 5 2 2 6 6 4 4 . 1 1 3 . 6 1 . 1 1 . . . . 3 2 . 6 5 . 6 6 . . 5 3 1 7 3 4 5 Max Kills in Single Turn 5 | . 1 1 2 2 1 4 2 3 3 1 1 1 2 . 2 1 . 3 1 . . . 1 1 1 . 5 2 1 1 1 . 1 3 1 1 2 1 2 2 Gunslinging 1 | . . . 1 1 . 1 . . . . . . . . . . . . . . . . . . . . . . . . . . . . . . . . . . Exploded 4 | . . . 1 . 1 4 2 3 3 . . . 2 . 2 . . 1 . . . . . . . . 3 . . . . . . 3 . . 2 . . . Melee 1 | . . . . . 1 . . . . . . . . . 1 1 . 1 . . . . . . . . . 1 . . 1 . . 1 . . 1 1 1 . Uniques/NPCs Destroyed 10 | . . . . . 4 . . . . . . . . . . . . . . . . . . . . . . . . . . . . . . . . . 2 4 8R-AWN (-9/Exiles) EX-BIN (-9/Exiles) EX-HEX (-9/Exiles) EX-DEC (-9/Exiles) MAIN.C Shell (-1/Command) MAIN.C (-1/Command) A8 (-1/Access_0) A6 (-1/Access_0) A5 (-1/Access_0) Architect (-1/Access_0) Combat | -11 -10 -10 -9 -9 -9 -8 -8 -8 -7 -7 -7 -7 -7 -7 -6 -6 -6 -6 -6 -6 -6 -5 -5 -5 -5 -5 -5 -4 -4 -4 -4 -4 -3 -3 -2 -2 -2 -1 -1 -1 -------- Run | Jun Mat Min Mat Min Exi Min Mat Sto Fac Was Fac Low Low Dat Pro Fac Was Fac Low Low Zio Pro Fac Ext Cet Arc Hub Fac Was Fac Arm Lab Res Tes Res Qua Sec Acc Com Ac0 Damage Taken 20892 | . 397 432 941 150 779 278 1285 1542 65 . 12 33 94 . 430 364 35 490 37 . . . . 387 103 206 2228 1407 . 617 503 . 86 423 748 139 2119 223 1862 2477 Core 3270 | . 82 62 109 17 109 24 180 263 12 . . 12 22 . 72 58 . 35 19 . . . . 61 24 24 482 298 . 103 38 . 24 30 39 . 538 44 243 246 Absorbed by Shields 4729 | . . . 165 38 . . . . . . . . . . . . . . . . . . . . 25 . . . . . . . . . 531 91 250 . 1232 2397 Redirected to Shielding 296 | . . . 8 . . . . . . . . . . . . . . . . . . . . . . . . . . . . . . . . . . . 87 201 Ignored by Resistances 4524 | . . . . . . 43 47 74 . . . . . . . . . . . . . . . . . . 193 15 . 63 539 . . 72 . . 304 472 2638 64 Regen/Repaired (Parts) 7347 | . . . . . . . . . 138 . . . . . . 23 . . . . 792 . . . 1 . . 748 1221 . 919 . 173 197 288 73 789 602 766 617 Core Remaining (%) 63 | 100 . 42 . . . 35 . 19 . . . . . . 83 . . . . . . 86 . . . . 40 . . . . 61 . 95 . . 60 . . 72 Volleys Fired 1708 | . 41 20 101 9 65 18 65 65 33 15 23 21 42 . 34 64 19 27 1 2 . 6 14 23 28 12 54 109 4 59 74 21 23 77 58 16 109 67 182 107 Largest 2 | . 2 2 2 2 1 2 2 2 1 1 1 1 1 . 1 1 1 1 1 1 . 1 1 1 1 1 1 1 1 1 1 1 1 1 1 1 1 1 1 1 Hottest 180 | . 40 77 63 46 30 53 51 53 30 48 48 48 48 . 48 48 48 90 90 90 . 90 90 90 60 60 90 90 120 120 120 120 120 120 120 120 120 120 180 180 Shots Fired 2011 | . 82 40 199 18 64 35 119 126 33 15 23 21 42 . 34 63 19 27 1 2 . 6 14 23 28 12 53 109 4 59 79 21 23 77 60 17 109 67 180 107 Gun 983 | . 82 35 196 18 62 34 109 123 31 . . . 21 . 12 16 . . . . . . . . . . 47 57 . . . . . 43 32 3 25 . 20 17 Cannon 983 | . . 5 . . . . . . . 15 23 21 13 . 12 47 19 27 1 2 . 6 14 23 28 12 3 52 4 59 79 21 23 32 28 14 84 66 160 90 Launcher 44 | . . . 3 . 2 1 10 3 2 . . . 8 . 10 . . . . . . . . . . . 3 . . . . . . 2 . . . . . . Special 1 | . . . . . . . . . . . . . . . . . . . . . . . . . . . . . . . . . . . . . . 1 . . Kinetic 1246 | . 82 40 191 18 62 34 109 123 31 15 23 21 34 . 24 63 19 18 . . . . . 10 28 12 47 69 . 18 15 . . 43 32 3 25 . 20 17 Thermal 417 | . . . . . . . . . . . . . . . . . . 9 1 2 . 6 14 13 . . 3 32 4 19 54 21 23 26 14 14 50 66 46 . Explosive 44 | . . . 3 . 2 1 10 3 2 . . . 8 . 10 . . . . . . . . . . . 3 . . . . . . 2 . . . . . . Electromagnetic 134 | . . . 5 . . . . . . . . . . . . . . . . . . . . . . . . 8 . 22 10 . . 6 14 . 34 . 35 . Slashing 169 | . . . . . . . . . . . . . . . . . . . . . . . . . . . . . . . . . . . . . . . 79 90 Robot Hit Streak 42 | . 8 7 17 5 4 8 38 40 14 7 9 5 5 . 4 9 11 3 2 . . . 2 14 17 11 4 12 2 30 31 . 4 10 8 4 14 3 42 27 Robot Miss Streak 7 | . 3 2 3 2 7 2 3 2 3 . 2 2 1 . 2 2 2 2 . . . 1 4 1 2 3 3 5 . 4 5 . 5 5 5 1 4 1 4 5 Penetration Max 2 | . . . . . 1 2 1 . 1 . . . . . . . . . . . . . . . . . 2 2 . . . . . 2 2 1 1 . 1 1 Secondary Targets 10 | . . . 4 1 . 2 . 3 . . . . . . . . . . . . . . . . . . . . . . . . . . . . . . . . Max Gunslinging Chain 1 | . . . 1 1 . 1 . 1 . . . . . . . . . . . . . . . . . . . . . . . . . . . . . . . . Capacitor 272 | . . . . . . . . . . . . . . . . . . . . . . . . . . . . . . . . . . . . . . 30 152 90 Shots Hit Robots 1353 | . 48 30 143 13 77 23 96 102 32 9 14 11 12 . 9 40 11 12 3 . . . 6 17 22 12 33 63 8 37 42 . 15 44 43 9 57 26 128 106 Core Hits 1066 | . 21 8 52 4 30 16 60 39 25 1 7 3 10 . 23 15 4 4 2 . . . 2 8 20 9 45 53 5 21 21 . 7 46 30 5 35 21 145 269 Critical Kills 110 | . . . . . 2 7 1 . 5 . . . . . 2 . . . . . . . . . . . 9 13 . . 2 . . 16 13 1 15 4 12 8 Critical Parts Destroyed 120 | . . 2 1 . 4 5 1 6 5 . . . 2 . . . . . . . . . . . . . 6 10 . . . . . 24 19 1 13 . 12 9 Critical Strikes 287 | . . 2 1 . 9 12 2 6 13 . 2 1 4 . 2 4 . . . . . . . 1 1 2 18 27 3 2 5 . 1 45 32 3 33 6 28 22 Meltdown 14 | . . . . . . . . . . . . . . . . . . . . . . . . . . . . . . . 2 . . 1 . . 5 4 2 . Destroy 227 | . . 2 1 . 6 12 2 6 11 . . . 4 . 2 2 . . . . . . . . . . 15 23 . . . . . 42 32 2 23 . 24 18 Blast 9 | . . . . . . . . . . . 2 1 . . . 1 . . . . . . . 1 1 2 . 1 . . . . . . . . . . . . Corrupt 12 | . . . . . . . . . . . . . . . . . . . . . . . . . . . . 3 . 2 2 . . . . . 5 . . . Sever 16 | . . . . . 3 . . . 2 . . . . . . 1 . . . . . . . . . . 2 . . . . . . . . . . 2 2 4 Impale 9 | . . . . . . . . . . . . . . . . . . . . . . . . . . . 1 . 3 . 1 . 1 2 . 1 . . . . Melee Attacks 859 | . . . 4 . 65 . . 2 113 5 14 2 14 . 12 56 . 47 3 4 2 . 20 3 . . 16 87 7 46 20 14 24 48 60 29 38 62 40 2 Kinetic 7 | . . . . . . . . . . . . . . . . . . . . . . . . . . . . . . . . . . . . . . . 7 . Impact . | . . . . . . . . . . . . . . . . . . . . . . . . . . . . . . . . . . . . . . . . . Slashing 509 | . . . 4 . 65 . . 2 113 5 14 2 14 . 12 56 . 47 3 4 1 . . 1 . . 11 . . . . . . . . 20 38 62 33 2 Piercing 343 | . . . . . . . . . . . . . . . . . . . . . 1 . 20 2 . . 5 87 7 46 20 14 24 48 60 9 . . . . Sneak Attacks 97 | . . . . . . . . . 14 3 6 . 2 . 2 9 . 3 . . . . 4 1 . . 5 7 6 2 . . 5 9 4 1 4 3 7 . Combat Hostiles 2 | . . . . . . . . . . . . . . . . . . . . . . . . . . . . . . . . . . . . . . . 2 . Follow-up Attacks 11 | . . . . . 11 . . . . . . . . . . . . . . . . . . . . . . . . . . . . . . . . . . . Damage Inflicted 69569 | . 381 379 2413 229 2307 854 2979 2065 2149 382 858 281 469 . 1465 1824 441 959 101 . . . 348 966 1803 738 1825 2889 519 2149 2162 . 766 2182 1213 460 3376 3231 12866 11540 Guns 10652 | . 379 225 2217 229 352 450 1580 1501 330 . . . 143 . 64 169 . . . . . . . . . . 529 680 . . . . . 605 382 34 301 . 292 190 Cannons 37000 | . . 92 . . . . . . . 168 417 281 . . 24 670 441 303 40 . . . 75 886 1803 738 . 902 41 1953 2094 . 336 322 469 44 1754 1363 10434 11350 Explosions 6638 | . . . 159 . 143 357 1331 560 200 . . . 179 . 1196 . . 346 . . . . . . . . 734 634 . . . . . 525 . . 201 . 73 . Melee 15043 | . . . . . 1812 . . . 1619 214 441 . 147 . 181 985 . 310 61 . . . 273 80 . . 562 673 478 193 68 . 430 717 362 382 1120 1868 2067 . Ramming 236 | . 2 62 37 . . 47 68 4 . . . . . . . . . . . . . . . . . . . . . 3 . . . 13 . . . . . . Kinetic 18717 | . 379 317 2172 229 352 450 1580 1501 330 168 417 281 143 . 88 839 441 220 . . . . . 696 1803 738 529 1095 . 1116 711 . . 605 382 34 301 . 610 190 Thermal 6551 | . . . . . . 136 . . . . . . . . . . . 429 40 . . . 75 190 . . . 147 41 144 1108 . 336 133 90 44 1135 1363 1140 . Explosive 5628 | . . . 159 . 143 221 1331 560 200 . . . 179 . 1196 . . . . . . . . . . . 480 634 . . . . . 525 . . . . . . Electromagnetic 3711 | . . . 45 . . . . . . . . . . . . . . . . . . . . . . . 254 340 . 693 275 . . 189 379 . 820 . 716 . Impact . | . . . . . . . . . . . . . . . . . . . . . . . . . . . . . . . . . . . . . . . . . Slashing 31057 | . . . . . 1812 . . . 1619 214 441 . 147 . 181 985 . 310 61 . . . . 48 . . 239 . . . . . . . . 262 1120 1868 10400 11350 Piercing 3669 | . . . . . . . . . . . . . . . . . . . . . . . 273 32 . . 323 673 478 193 68 . 430 717 362 120 . . . . Highest Corruption 18 | . 1 1 . . 1 1 . . 2 . . . . . . 2 18 14 14 14 14 . . . . . 14 1 . . 6 6 . . 4 4 1 1 17 . Average Corruption 4 | . 1 1 . . 1 1 . . 1 . . . . . . 1 11 8 14 14 14 . . . . . 11 1 . . 3 6 . . 3 4 1 1 9 . Corruption Purged 28 | . . . . . . . . . 2 . . . . . . 1 7 . . . . . . . . . . 1 . . . . . . . . . . 17 . Corruption Blocked . | . . . . . . . . . . . . . . . . . . . . . . . . . . . . . . . . . . . . . . . . . Effects 263 | . 2 11 . . 8 9 . . 10 . . . . . . 3 5 42 11 11 2 . . . . . 13 . . . 33 24 . . 9 12 8 2 48 . Message Errors 59 | . . 2 . . 1 3 . . 4 . . . . . . 2 1 9 4 2 1 . . . . . 4 . . . 6 8 . . 2 3 1 1 5 . Matter Fused 66 | . . 2 . . 4 1 . . 1 . . . . . . . 3 11 3 6 . . . . . . 2 . . . 8 4 . . 2 3 2 . 14 . Heat Flow Errors 22 | . . 1 . . 2 1 . . 2 . . . . . . . . 1 . 2 . . . . . . 2 . . . 3 4 . . . 1 . . 3 . Energy Discharges 42 | . 1 2 . . . 2 . . . . . . . . . . . 8 3 . 1 . . . . . 3 . . . 3 4 . . 3 2 2 . 8 . Parts Rejected 2 | . . . . . . . . . . . . . . . . . . . 1 . . . . . . . . . . . . . . . . . 1 . . . Parts Fused 1 | . . . . . . . . . . . . . . . . . . . . . . . . . . . . . . . . . . . . . . . 1 . Data Loss (minor) 33 | . 1 2 . . . . . . 3 . . . . . . . . 7 . 1 . . . . . . . . . . 4 3 . . . 2 . 1 9 . Data Loss (major) 12 | . . 1 . . . . . . . . . . . . . . . 2 . . . . . . . . 1 . . . 2 1 . . . . 2 . 3 . Misfires 10 | . . . . . . 1 . . . . . . . . . . . 1 . . . . . . . . . . . . 5 . . . 2 1 . . . . Alerts 6 | . . 1 . . . . . . . . . . . . . . . 1 . . . . . . . . . . . . 2 . . . . . . . 2 . Misdirections 4 | . . . . . . . . . . . . . . . . . 1 1 . . . . . . . . . . . . . . . . . . . . 2 . Weapon Failures 6 | . . . . . 1 1 . . . . . . . . . 1 . 1 . . . . . . . . 1 . . . . . . . . . . . 1 . Overload Shots . | . . . . . . . . . . . . . . . . . . . . . . . . . . . . . . . . . . . . . . . . . Overflow Damage 3973 | . . . . . 38 9 32 32 393 . 146 . . . 67 303 . 352 . . . . 84 16 27 . 66 158 98 162 137 . 114 205 142 148 241 528 454 21 Projectiles 533 | . . . . . . . . . . . 15 . . . . 23 . 1 . . . . 25 9 27 . . 26 . 49 137 . . 13 32 . 72 16 67 21 Explosions 403 | . . . . . 4 9 32 32 . . . . . . 6 . . 187 . . . . . . . . 11 75 . . . . . 47 . . . . . . Melee 3037 | . . . . . 34 . . . 393 . 131 . . . 61 280 . 164 . . . . 59 7 . . 55 57 98 113 . . 114 145 110 148 169 512 387 . Knockbacks 52 | . . 2 . . . . 1 . . . 1 . . . . 5 . 3 . . . . . 1 7 . . 4 . 17 11 . . . . . . . . . Impact 2 | . . 1 . . . . 1 . . . . . . . . . . . . . . . . . . . . . . . . . . . . . . . . . Kinetic 48 | . . 1 . . . . . . . . 1 . . . . 4 . 3 . . . . . 1 7 . . 4 . 16 11 . . . . . . . . . Secondary 2 | . . . . . . . . . . . . . . . . 1 . . . . . . . . . . . . . 1 . . . . . . . . . . Self-Inflicted Damage 758 | . . . . . . . 151 69 . . . . 21 . 76 . . 126 . . . . . . . . 218 . . 1 . . . 25 . . 71 . . . Shots 21 | . . . . . . . 5 3 . . . . 2 . 3 . . 2 . . . . . . . . 4 . . . . . . 1 . . 1 . . . Rammed 30 | . 1 11 6 . . 5 4 1 . . . . . . . . . . . . . . . . . . . . . 1 . . . 1 . . . . . . Targets Rammed 39 | . 1 12 7 . . 7 9 1 . . . . . . . . . . . . . . . . . . . . . 1 . . . 1 . . . . . . Kicked 5 | . . . . . . . 5 . . . . . . . . . . . . . . . . . . . . . . . . . . . . . . . . . Crushed 4 | . . 1 1 . . 2 . . . . . . . . . . . . . . . . . . . . . . . . . . . . . . . . . . Highest Temperature 412 | . 50 278 42 12 258 162 241 278 231 152 82 62 48 . 141 26 32 103 44 251 . 179 92 306 106 1 292 412 114 314 305 229 165 348 106 82 201 198 198 178 Average Temperature 105 | . 13 70 13 5 101 56 51 90 83 73 22 30 15 . 32 9 12 36 29 94 . 74 35 153 45 1 56 63 23 80 98 59 57 99 14 55 79 73 183 85 Received Heat Transfer 2548 | . 138 189 265 8 . 45 558 540 12 . . 9 . . 162 21 . 48 18 . . . . 54 . 18 . 48 . 88 57 . . 27 . 4 177 . 41 21 Effects 22 | . . . . . . . . 3 . . . . . . . . . . . . . . . 4 . . . 3 . . 2 . . 4 . . 6 . . . Shutdowns 1 | . . . . . . . . . . . . . . . . . . . . . . . . . . . . . . . . . . 1 . . . . . . Energy Bleed 6 | . . . . . . . . . . . . . . . . . . . . . . . . 4 . . . 1 . . . . . . . . 1 . . . Interference 15 | . . . . . . . . 3 . . . . . . . . . . . . . . . . . . . 2 . . 2 . . 3 . . 5 . . . Siege Activations . | . . . . . . . . . . . . . . . . . . . . . . . . . . . . . . . . . . . . . . . . . Robots Corrupted 18 | . . . . . . . . . . . . . . . . . . . . . . . . . . . . 2 . 4 2 . . . 1 . 5 . 4 . Combat Hostiles 17 | . . . . . . . . . . . . . . . . . . . . . . . . . . . . 2 . 4 2 . . . 1 . 5 . 3 . Parts Fried 41 | . . . . . . . . . . . . . . . . . . . . . . . . . . . . 5 . 13 2 . . 3 4 . 9 . 5 . Impact Corruptions 1 | . . . . . . . . . . . . . . . . . . . . . . . . . . . . . . . . . . 1 . . . . . . Robots Melted 14 | . . . . . . . . . . . . . . . . . . . . . . . . . . . . . . . 2 . . 1 . . 5 4 2 . Combat Hostiles 12 | . . . . . . . . . . . . . . . . . . . . . . . . . . . . . . . 1 . . 1 . . 4 4 2 . Parts Melted 24 | . . . . . . . . . . . . . . . . . . . . . . . . . . . . . . . 7 . 1 . . . 5 8 3 . Heat Transferred 4767 | . . . . . . 150 . . . . . . . . . . . 250 . . . . . . . . . . 37 111 814 . 296 111 74 37 951 1072 864 . Parts Sabotaged 6 | . . . . . . . . . . . . . . . . . . . . . . . . . . . . . . . 6 . . . . . . . . . Parts Stolen . | . . . . . . . . . . . . . . . . . . . . . . . . . . . . . . . . . . . . . . . . . Parts Stripped . | . . . . . . . . . . . . . . . . . . . . . . . . . . . . . . . . . . . . . . . . . Power Chain Reactions 2 | . . . . . . . . . . . . . . . . . . . . . . . . . . . . . . . . . . . . . 1 . 1 . Missiles Intercepted . | . . . . . . . . . . . . . . . . . . . . . . . . . . . . . . . . . . . . . . . . . Alert | -11 -10 -10 -9 -9 -9 -8 -8 -8 -7 -7 -7 -7 -7 -7 -6 -6 -6 -6 -6 -6 -6 -5 -5 -5 -5 -5 -5 -4 -4 -4 -4 -4 -3 -3 -2 -2 -2 -1 -1 -1 ------- Run | Jun Mat Min Mat Min Exi Min Mat Sto Fac Was Fac Low Low Dat Pro Fac Was Fac Low Low Zio Pro Fac Ext Cet Arc Hub Fac Was Fac Arm Lab Res Tes Res Qua Sec Acc Com Ac0 Peak Influence 988 | . 232 82 305 174 . 267 570 445 479 196 988 . . . . 252 103 519 . . . . 258 404 681 415 950 645 51 419 368 . 116 464 384 162 626 403 764 . Initial 465 | . . . . 92 . . 5 86 155 128 137 . . . . 84 88 65 . . . . 41 12 186 192 . 465 51 . 181 . . 55 261 120 60 316 237 . Average 191 | . 95 26 170 84 . 96 185 195 330 170 624 . . . . 81 93 265 . . . . 115 223 365 56 418 307 23 104 197 . 59 107 191 74 322 175 617 . Maximum Alert Level 3 | . 1 . 1 . . 1 2 2 2 . 3 . . . . 1 . 2 . . . . 1 2 2 2 3 2 . 2 1 . . 2 1 . 2 2 3 . Low Security (%) 58 | 100 99 100 54 100 . 91 64 62 12 100 2 . . . . 97 100 40 . . . . 74 39 16 83 48 45 100 85 36 . 100 78 53 100 36 58 . . Level 1 21 | . . . 45 . . 8 27 28 58 . 1 . . . . 2 . 28 . . . . 25 47 51 9 2 18 . 13 63 . . 19 46 . 20 38 3 . Level 2 12 | . . . . . . . 8 8 29 . 72 . . . . . . 30 . . . . . 13 32 7 25 36 . . . . . 2 . . 42 3 13 . Level 3 7 | . . . . . . . . . . . 23 . . . . . . . . . . . . . . . 23 . . . . . . . . . . . 82 . Level 4 . | . . . . . . . . . . . . . . . . . . . . . . . . . . . . . . . . . . . . . . . . . Level 5 . | . . . . . . . . . . . . . . . . . . . . . . . . . . . . . . . . . . . . . . . . . High Security . | . . . . . . . . . . . . . . . . . . . . . . . . . . . . . . . . . . . . . . . . . Max Security . | . . . . . . . . . . . . . . . . . . . . . . . . . . . . . . . . . . . . . . . . . Squads Dispatched 98 | . . . 3 . . . 3 2 10 . 4 . . . . 5 . 9 . . . . 2 1 . . 7 5 . 8 5 . 3 7 2 1 6 10 5 . Investigation 29 | . . . 2 . . . . . 7 . 3 . . . . 1 . 2 . . . . . 1 . . . . . 5 1 . 2 2 . . . 3 . . Extermination 31 | . . . . . . . . . 2 . . . . . . 3 . 2 . . . . . . . . 1 3 . 3 4 . . 3 2 1 2 3 2 . Reinforcement 28 | . . . 1 . . . . . 1 . . . . . . 1 . 4 . . . . 1 . . . 5 2 . . . . 1 2 . . 4 4 2 . Assault 6 | . . . . . . . . 2 . . 1 . . . . . . 1 . . . . 1 . . . . . . . . . . . . . . . 1 . Garrison 4 | . . . . . . . 3 . . . . . . . . . . . . . . . . . . . 1 . . . . . . . . . . . . . Intercept . | . . . . . . . . . . . . . . . . . . . . . . . . . . . . . . . . . . . . . . . . . Searches Triggered 1 | . . . . . . . . . . . . . . . . . . . . . . . . . . . . . . . . . . . . . . 1 . . Data Miner Redirects 12 | . . . . . . . . . . . . . . . . 2 . 2 . . . . . . . . . 1 . 2 . . . 1 . . . 3 1 . Construction Impeded 3 | . . . . . . . . . . . . . . . . . . 2 . . . . . . . . 1 . . . . . . . . . . . . . Haulers Reinforced 5 | . . . . . . . . . . . . . . . . . . . . . . . . . . . . 1 . . . . 1 2 . . . 1 . . Active Scanning Responses . | . . . . . . . . . . . . . . . . . . . . . . . . . . . . . . . . . . . . . . . . . Cargo Convoy Interrupts 2 | . . . . . . . . . . . . . . . . 1 . . . . . . . . . . . 1 . . . . . . . . . . . . Stealth | -11 -10 -10 -9 -9 -9 -8 -8 -8 -7 -7 -7 -7 -7 -7 -6 -6 -6 -6 -6 -6 -6 -5 -5 -5 -5 -5 -5 -4 -4 -4 -4 -4 -3 -3 -2 -2 -2 -1 -1 -1 --------- Run | Jun Mat Min Mat Min Exi Min Mat Sto Fac Was Fac Low Low Dat Pro Fac Was Fac Low Low Zio Pro Fac Ext Cet Arc Hub Fac Was Fac Arm Lab Res Tes Res Qua Sec Acc Com Ac0 Distress Signals 77 | . 1 1 5 . . . 2 2 1 . 1 . . . . 1 . 1 . . . . 1 2 1 . . 7 . 1 . . 11 1 . 1 6 1 30 . Communications Jammed 68 | . . . . . . . . . . . . . . . . . . . . . . . . . . . . . . . . . 22 19 3 . 9 4 11 . Distress Signals 68 | . . . . . . . . . . . . . . . . . . . . . . . . . . . . . . . . . 22 19 3 . 9 4 11 . Times Spotted 746 | . 18 6 32 5 21 17 40 32 25 4 25 8 3 . 11 28 4 42 10 3 . 5 9 27 17 8 26 51 1 23 28 . 15 26 19 6 45 27 41 38 Peak Tracking Total 11 | . 5 3 5 3 9 7 6 7 4 3 5 4 3 . 5 4 2 5 5 6 . 2 2 5 8 1 9 7 1 6 5 . 6 5 5 2 11 6 10 6 Tactical Retreats 81 | . 4 . . 1 8 3 5 5 3 1 . 3 1 . 2 3 . 1 1 3 . 2 . . . . 2 4 . 7 . . . 1 . 1 13 3 4 . Traps | -11 -10 -10 -9 -9 -9 -8 -8 -8 -7 -7 -7 -7 -7 -7 -6 -6 -6 -6 -6 -6 -6 -5 -5 -5 -5 -5 -5 -4 -4 -4 -4 -4 -3 -3 -2 -2 -2 -1 -1 -1 ------- Run | Jun Mat Min Mat Min Exi Min Mat Sto Fac Was Fac Low Low Dat Pro Fac Was Fac Low Low Zio Pro Fac Ext Cet Arc Hub Fac Was Fac Arm Lab Res Tes Res Qua Sec Acc Com Ac0 Traps Triggered 21 | . 4 . 1 . . . . . 2 . . . . . . 2 . 1 . . . . . . . . . 1 . . 3 . . . 3 . . . 4 . Indirectly . | . . . . . . . . . . . . . . . . . . . . . . . . . . . . . . . . . . . . . . . . . Trap Hack Attempts . | . . . . . . . . . . . . . . . . . . . . . . . . . . . . . . . . . . . . . . . . . Triggered . | . . . . . . . . . . . . . . . . . . . . . . . . . . . . . . . . . . . . . . . . . Disarmed . | . . . . . . . . . . . . . . . . . . . . . . . . . . . . . . . . . . . . . . . . . Reprogrammed 6 | . . . . . . . . . . . . . . . . . . 6 . . . . . . . . . . . . . . . . . . . . . . Reused 1 | . . . . . . . . . . . . . . . . . . 1 . . . . . . . . . . . . . . . . . . . . . . Traps Extracted . | . . . . . . . . . . . . . . . . . . . . . . . . . . . . . . . . . . . . . . . . . Installed 6 | . . . . . . . . . . . . . 6 . . . . . . . . . . . . . . . . . . . . . . . . . . . Triggered 9 | . . . . 1 . . . . . . . . . . 2 3 . 1 . . . 2 . . . . . . . . . . . . . . . . . . Most Traps Carried 1 | . . . . . . . . . . . . . 1 . . . . . . . . . . . . . . . . . . . . . . . . . . . Machines | -11 -10 -10 -9 -9 -9 -8 -8 -8 -7 -7 -7 -7 -7 -7 -6 -6 -6 -6 -6 -6 -6 -5 -5 -5 -5 -5 -5 -4 -4 -4 -4 -4 -3 -3 -2 -2 -2 -1 -1 -1 ---------- Run | Jun Mat Min Mat Min Exi Min Mat Sto Fac Was Fac Low Low Dat Pro Fac Was Fac Low Low Zio Pro Fac Ext Cet Arc Hub Fac Was Fac Arm Lab Res Tes Res Qua Sec Acc Com Ac0 Machines Disabled 107 | . . . 6 . 13 3 2 3 3 . 1 . . . . 1 . 10 . . . . 2 5 . 1 15 11 . 3 8 3 . 3 . 4 7 . 1 2 Max in Single Turn 8 | . . . 1 . 2 2 2 2 1 . . . . . . 1 . 4 . . . . 1 1 . 1 8 4 . 1 1 1 . 1 . 1 1 . 1 1 Garrison Access 24 | . . . . . . . . . 4 . 2 . . . . 2 . 1 . . . . 1 . . . 2 3 . . . . 3 1 1 1 1 2 . . Phase Generator 1 | . . . . . . . . . . . . . . . . . . . . . . . . . . . . . . . . . . . . . . . 1 . Network Hub 1 | . . . . . . . . . . . . . . . . . . . . . . . . . . . 1 . . . . . . . . . . . . . Machines Repaired . | . . . . . . . . . . . . . . . . . . . . . . . . . . . . . . . . . . . . . . . . . Machines Sabotaged . | . . . . . . . . . . . . . . . . . . . . . . . . . . . . . . . . . . . . . . . . . Overloaded Fab Kills . | . . . . . . . . . . . . . . . . . . . . . . . . . . . . . . . . . . . . . . . . . Hacking | -11 -10 -10 -9 -9 -9 -8 -8 -8 -7 -7 -7 -7 -7 -7 -6 -6 -6 -6 -6 -6 -6 -5 -5 -5 -5 -5 -5 -4 -4 -4 -4 -4 -3 -3 -2 -2 -2 -1 -1 -1 --------- Run | Jun Mat Min Mat Min Exi Min Mat Sto Fac Was Fac Low Low Dat Pro Fac Was Fac Low Low Zio Pro Fac Ext Cet Arc Hub Fac Was Fac Arm Lab Res Tes Res Qua Sec Acc Com Ac0 Machines Accessed 242 | . 5 . 5 1 1 . 5 3 29 . 15 1 . 3 . 18 . 16 . 1 . . 7 7 . . 5 25 . 8 10 . 13 13 9 7 13 17 5 . Terminals 149 | . 4 . 4 . . . 4 2 13 . 8 . . . . 10 . 10 . . . . 6 7 . . 3 17 . 4 5 . 7 6 7 4 12 11 5 . Fabricators 25 | . . . . . . . . . 6 . 3 . . . . 2 . 3 . . . . 1 . . . . 1 . 3 2 . 1 2 . . . 1 . . Repair Stations 13 | . . . . . . . . 1 2 . . . . . . 1 . 1 . . . . . . . . . 2 . . 2 . 1 1 . . . 2 . . Recycling Units 15 | . 1 . 1 . . . 1 . 2 . 2 . . . . 2 . 1 . . . . . . . . . 1 . 1 1 . . . 1 . . 1 . . Scanalyzers 10 | . . . . . . . . . 2 . . . . . . 1 . . . . . . . . . . . 1 . . . . 1 3 . 2 . . . . Garrison Access 23 | . . . . . . . . . 4 . 2 . . . . 2 . 1 . . . . . . . . 2 3 . . . . 3 1 1 1 1 2 . . Total Hacks 904 | . 17 . 12 1 1 . 14 4 73 . 35 1 . 22 . 60 . 56 . 7 . . 24 23 . . 17 124 . 33 40 . 58 66 57 22 54 71 12 . Successful 523 | . 5 . 3 1 1 . 5 3 53 . 25 1 . 22 . 40 . 32 . 7 . . 13 11 . . 10 83 . 17 31 . 27 42 22 13 21 32 3 . Failed 380 | . 12 . 9 . . . 9 1 20 . 10 . . . . 20 . 24 . . . . 10 12 . . 7 41 . 16 9 . 31 24 35 9 33 39 9 . Catastrophic 66 | . 2 . 2 . . . 1 . 4 . . . . . . 1 . 7 . . . . . 2 . . . 6 . 1 2 . 7 2 9 . 10 8 2 . Database Lockouts 1 | . . . . . . . . . . . . . . . . . . . . . . . 1 . . . . . . . . . . . . . . . . . Manual 562 | . 17 . 9 . . . 11 1 37 . 23 . . . . 39 . 39 . . . . 14 21 1 . 7 96 . 26 14 . 35 37 36 16 41 37 5 . Terminals 604 | . 15 . 9 . . . 11 2 30 . 18 . . . . 36 . 42 . . . . 18 23 . . 11 97 . 19 16 . 38 43 46 18 53 47 12 . Fabricators 89 | . . . . . . . . . 19 . 7 . . . . 12 . 9 . . . . 6 . . . . 1 . 12 9 . 2 8 . . . 4 . . Repair Stations 56 | . . . . . . . . 2 5 . . . . . . 2 . 2 . . . . . . . . . 10 . . 12 . 6 6 . . . 11 . . Recycling Units 46 | . 2 . 3 . . . 3 . 5 . 5 . . . . 4 . 2 . . . . . . . . . 4 . 2 3 . . . 8 . . 5 . . Scanalyzers 35 | . . . . . . . . . 6 . . . . . . 2 . . . . . . . . . . . 8 . . . . 9 8 . 2 . . . . Garrison Access 42 | . . . . . . . . . 8 . 5 . . . . 4 . 1 . . . . . . . . 6 4 . . . . 3 1 3 2 1 4 . . Terminal Hacks 197 | . 4 . 1 1 1 . 3 2 12 . 9 1 . 22 . 9 . 12 . 7 . . 4 9 . . 4 25 . 3 4 . 8 19 10 5 10 9 3 . Record 15 | . . . . . 1 . . . . . . . . 6 . . . . . 7 . . . . . . . . . . . . . . . . 1 . . . Part Schematic 25 | . . . . . . . . . 4 . 2 . . 8 . . . . . . . . 2 2 . . . 1 . . . . 3 1 . . 1 1 . . Robot Schematic 5 | . . . . . . . . . . . . . . 5 . . . . . . . . . . . . . . . . . . . . . . . . . . Robot Analysis 5 | . 3 . 1 . . . . . . . . . . . . . . . . . . . 1 . . . . . . . . . . . . . . . . . Prototype ID Bank 16 | . . . . . . . . . . . . . . 3 . 1 . 1 . . . . . . . . . . . . . . . 9 1 . . 1 . . Open Door 8 | . . . . 1 . . . 1 . . . 1 . . . . . . . . . . . . . . . . . . . . . 1 . . 3 . 1 . Level Access Points 2 | . . . . . . . . . . . . . . . . . . . . . . . . . . . . 1 . . . . . . . . 1 . . . Branch Access Points 10 | . . . . . . . . . 1 . 1 . . . . 1 . 1 . . . . . . . . . 2 . 1 . . 1 . 2 . . . . . Machine Index 9 | . . . . . . . . . 1 . . . . . . 1 . 1 . . . . . . . . . 1 . . . . 1 1 1 . . 1 1 . Terminal Index 12 | . . . . . . . . . 1 . 1 . . . . 1 . 1 . . . . 1 . . . 1 1 . 1 1 . . . 1 1 . 1 . . Fabricator Index 2 | . . . . . . . . . . . 1 . . . . . . . . . . . . . . . . . . . . . . . . . . 1 . . Repair Station Index 1 | . . . . . . . . . . . . . . . . . . . . . . . . . . . . . . . . . . . . . . 1 . . Alert Level 2 | . . . . . . . . . . . . . . . . . . . . . . . . . . . . 2 . . . . . . . . . . . . Unreport Threat 43 | . . . . . . . 2 . . . 3 . . . . 2 . 2 . . . . . 5 . . . 7 . 1 3 . 2 4 3 3 3 3 . . Locate Traps 16 | . . . . . . . . . 1 . . . . . . 2 . 1 . . . . . 1 . . 2 4 . . . . 1 1 1 1 1 . . . Reprogram Traps 2 | . . . . . . . . . . . . . . . . . . 2 . . . . . . . . . . . . . . . . . . . . . . Patrol Status 1 | . . . . . . . . . . . . . . . . . . . . . . . . . . . . . . . . . . . . . . . 1 . Recall Investigation 1 | . . . . . . . . . . . . . . . . . . . . . . . . . . . . . . . . . . 1 . . . . . . Recall Extermination 5 | . . . . . . . . . 2 . . . . . . . . 1 . . . . . . . . . 2 . . . . . . . . . . . . Recall Reinforcements 2 | . . . . . . . . . . . . . . . . 1 . . . . . . . . . . . 1 . . . . . . . . . . . . Hauler Manifests 4 | . . . . . . . . . 1 . . . . . . . . . . . . . . 1 . . 1 . . . . . . . 1 . . . . . Zone Layout 11 | . 1 . . . . . 1 1 1 . 1 . . . . . . 2 . . . . . . . . . 3 . . . . . 1 . . . . . . Fabricator Hacks 52 | . . . . . . . . . 11 . 4 . . . . 9 . 4 . . . . 4 . . . . . . 4 7 . 2 5 . . . 2 . . Network Status 5 | . . . . . . . . . 1 . . . . . . . . 1 . . . . . . . . . . . 1 1 . . 1 . . . . . . Load Schematic 28 | . . . . . . . . . 7 . 2 . . . . 5 . 2 . . . . 2 . . . . . . 3 3 . 1 2 . . . 1 . . Build 19 | . . . . . . . . . 3 . 2 . . . . 4 . 1 . . . . 2 . . . . . . . 3 . 1 2 . . . 1 . . Repair Station Hacks 46 | . . . . . . . . 1 4 . . . . . . 2 . . . . . . . . . . . 10 . . 12 . 4 6 . . . 7 . . Scan Component 24 | . . . . . . . . 1 2 . . . . . . 1 . . . . . . . . . . . 5 . . 6 . 2 3 . . . 4 . . Repair 22 | . . . . . . . . . 2 . . . . . . 1 . . . . . . . . . . . 5 . . 6 . 2 3 . . . 3 . . Recycling Unit Hacks 8 | . . . 1 . . . 1 . 1 . 2 . . . . 1 . . . . . . . . . . . . . . 1 . . . 1 . . . . . Retrieve Matter 1 | . . . . . . . . . . . . . . . . 1 . . . . . . . . . . . . . . . . . . . . . . . . Retrieve Components 7 | . . . 1 . . . 1 . 1 . 2 . . . . . . . . . . . . . . . . . . . 1 . . . 1 . . . . . Scanalyzer 26 | . . . . . . . . . 6 . . . . . . 2 . . . . . . . . . . . 8 . . . . 5 4 . 1 . . . . Insert Component 17 | . . . . . . . . . 3 . . . . . . 1 . . . . . . . . . . . 3 . . . . 5 4 . 1 . . . . Analyze 9 | . . . . . . . . . 3 . . . . . . 1 . . . . . . . . . . . 5 . . . . . . . . . . . . Garrison Access Hacks 22 | . . . . . . . . . 4 . 1 . . . . 2 . 1 . . . . . . . . 2 3 . . . . 3 1 1 1 1 2 . . Seal Access 22 | . . . . . . . . . 4 . 1 . . . . 2 . 1 . . . . . . . . 2 3 . . . . 3 1 1 1 1 2 . . Unauthorized Hacks 172 | . 1 . 1 . . . 1 . 15 . 9 . . . . 15 . 15 . . . . 5 2 . . 4 37 . 10 7 . 5 7 10 6 10 12 . . Terminals 125 | . 1 . 1 . . . 1 . 6 . 3 . . . . 10 . 11 . . . . 4 2 . . 4 34 . 4 3 . 5 4 7 5 10 10 . . Track 32 | . . . . . . . . . . . . . . . . 2 . 2 . . . . . . . . 2 11 . 1 1 . 1 1 2 3 4 2 . . Assimilate 27 | . . . . . . . . . 4 . 1 . . . . 1 . 1 . . . . 3 . . . . 5 . . . . 1 . 3 . 4 4 . . Botnet 47 | . . . . . . . . . 1 . 1 . . . . 6 . 6 . . . . 1 2 . . 1 15 . 1 1 . 2 2 2 1 1 4 . . Disrupt 1 | . . . . . . . . . . . . . . . . . . . . . . . . . . . . 1 . . . . . . . . . . . . Operators 18 | . 1 . 1 . . . 1 . 1 . 1 . . . . 1 . 2 . . . . . . . . 1 2 . 2 1 . 1 1 . 1 1 . . . Fabricators 22 | . . . . . . . . . 5 . 2 . . . . 2 . 3 . . . . 1 . . . . 1 . 4 2 . . 2 . . . . . . Prioritize 9 | . . . . . . . . . . . 1 . . . . 1 . 2 . . . . 1 . . . . . . . 2 . . 2 . . . . . . Liberate 1 | . . . . . . . . . . . . . . . . . . . . . . . . . . . . 1 . . . . . . . . . . . . Haulers 2 | . . . . . . . . . 1 . . . . . . . . . . . . . . . . . . . . 1 . . . . . . . . . . Overload 1 | . . . . . . . . . 1 . . . . . . . . . . . . . . . . . . . . . . . . . . . . . . . Recompile 9 | . . . . . . . . . 3 . 1 . . . . 1 . 1 . . . . . . . . . . . 3 . . . . . . . . . . Repair Stations . | . . . . . . . . . . . . . . . . . . . . . . . . . . . . . . . . . . . . . . . . . Recycling Units 22 | . . . . . . . . . 4 . 3 . . . . 3 . 1 . . . . . . . . . 2 . 2 2 . . . 3 . . 2 . . Reject 10 | . . . . . . . . . 2 . 2 . . . . 1 . . . . . . . . . . . 1 . 1 1 . . . 1 . . 1 . . Recyclers 8 | . . . . . . . . . 1 . 1 . . . . 1 . 1 . . . . . . . . . 1 . 1 1 . . . 1 . . . . . Mask 4 | . . . . . . . . . 1 . . . . . . 1 . . . . . . . . . . . . . . . . . . 1 . . 1 . . Scanalyzers 2 | . . . . . . . . . . . . . . . . . . . . . . . . . . . . . . . . . . 1 . 1 . . . . Researchers 2 | . . . . . . . . . . . . . . . . . . . . . . . . . . . . . . . . . . 1 . 1 . . . . Garrison Access 1 | . . . . . . . . . . . 1 . . . . . . . . . . . . . . . . . . . . . . . . . . . . . Jam 1 | . . . . . . . . . . . 1 . . . . . . . . . . . . . . . . . . . . . . . . . . . . . Data Cores Recovered 3 | . . . . . . . . . . . . . . . . . . . . . . . . . . . . 1 . . 1 . . . . . 1 . . . Used . | . . . . . . . . . . . . . . . . . . . . . . . . . . . . . . . . . . . . . . . . . Hacking Detections 172 | . 5 . 5 . . . 2 2 21 . 12 . . . . 14 . 12 . . . . 7 6 . . 3 16 . 7 7 . 9 8 7 3 7 15 4 . Full Trace Events 15 | . 1 . 1 . . . . . 3 . 1 . . . . . . 1 . . . . . . . . . . . 1 1 . 1 2 . . . 3 . . Feedback Events . | . . . . . . . . . . . . . . . . . . . . . . . . . . . . . . . . . . . . . . . . . Feedback Blocked . | . . . . . . . . . . . . . . . . . . . . . . . . . . . . . . . . . . . . . . . . . Robot Schematics Acquired 9 | . . . . . . . . . . . . . . 5 . . . . . . 3 . . . . . . . . . . . . 1 . . . . . . Robots Built . | . . . . . . . . . . . . . . . . . . . . . . . . . . . . . . . . . . . . . . . . . Authchips . | . . . . . . . . . . . . . . . . . . . . . . . . . . . . . . . . . . . . . . . . . Time . | . . . . . . . . . . . . . . . . . . . . . . . . . . . . . . . . . . . . . . . . . Total Robot Build Rating . | . . . . . . . . . . . . . . . . . . . . . . . . . . . . . . . . . . . . . . . . . Part Schematics Acquired 45 | . . . . . . . . . 6 . 2 . . 8 . 1 . . . . 12 . 2 2 . . . 3 . . . . 3 4 . . 1 1 . . Parts Built 27 | . . . . . . . . . 5 . 2 . . . . 6 . 2 . . . . 2 . . . . . . . 5 . 1 2 . . . 2 . . Authchips 13 | . . . . . . . . . 3 . . . . . . 4 . 1 . . . . 2 . . . . . . . 3 . . . . . . . . . Time 883 | . . . . . . . . . 153 . 78 . . . . 139 . 64 . . . . 84 . . . . . . . 110 . 74 142 . . . 39 . . Total Part Build Rating 187 | . . . . . . . . . 33 . 7 . . . . 38 . 16 . . . . 12 . . . . . . . 42 . 9 16 . . . 14 . . Parts Repaired 22 | . . . . . . . . . 2 . . . . . . 1 . . . . . . . . . . . 5 . . 6 . 2 3 . . . 3 . . Time 1279 | . . . . . . . . . 90 . . . . . . 54 . . . . . . . . . . . 322 . . 451 . 44 210 . . . 108 . . Parts Recycled . | . . . . . . . . . . . . . . . . . . . . . . . . . . . . . . . . . . . . . . . . . Recycled Matter . | . . . . . . . . . . . . . . . . . . . . . . . . . . . . . . . . . . . . . . . . . Retrieved Matter . | . . . . . . . . . . . . . . . . . . . . . . . . . . . . . . . . . . . . . . . . . Retrieved Components 33 | . . . 9 . . . 10 . 1 . 11 . . . . . . . . . . . . . . . . . . . . . . . 2 . . . . . Parts Scanalyzed 5 | . . . . . . . . . 2 . . . . . . 1 . . . . . . . . . . . 2 . . . . . . . . . . . . Part Schematics Acquired 5 | . . . . . . . . . 2 . . . . . . 1 . . . . . . . . . . . 2 . . . . . . . . . . . . Parts Damaged 2 | . . . . . . . . . 1 . . . . . . 1 . . . . . . . . . . . . . . . . . . . . . . . . Bothacking | -11 -10 -10 -9 -9 -9 -8 -8 -8 -7 -7 -7 -7 -7 -7 -6 -6 -6 -6 -6 -6 -6 -5 -5 -5 -5 -5 -5 -4 -4 -4 -4 -4 -3 -3 -2 -2 -2 -1 -1 -1 ------------ Run | Jun Mat Min Mat Min Exi Min Mat Sto Fac Was Fac Low Low Dat Pro Fac Was Fac Low Low Zio Pro Fac Ext Cet Arc Hub Fac Was Fac Arm Lab Res Tes Res Qua Sec Acc Com Ac0 Used RIF Installer . | . . . . . . . . . . . . . . . . . . . . . . . . . . . . . . . . . . . . . . . . . Robots Hacked 1 | . . . . . . . . . . . . . . . . . . . . . . . . . . . . . . . . . . . . . . 1 . . Non-combat 1 | . . . . . . . . . . . . . . . . . . . . . . . . . . . . . . . . . . . . . . 1 . . Combat . | . . . . . . . . . . . . . . . . . . . . . . . . . . . . . . . . . . . . . . . . . Robot Hacks Applied 1 | . . . . . . . . . . . . . . . . . . . . . . . . . . . . . . . . . . . . . . 1 . . check_alert 1 | . . . . . . . . . . . . . . . . . . . . . . . . . . . . . . . . . . . . . . 1 . . Relay Couplers Released 3 | . . . . . . . . . . . . . . . . . . . . . . . 2 . . . . . . . . . . . . . 1 . . . Machine Destruction 3 | . . . . . . . . . . . . . . . . . . . . . . . 2 . . . . . . . . . . . . . 1 . . . Fabnet Peak Effective % . | . . . . . . . . . . . . . . . . . . . . . . . . . . . . . . . . . . . . . . . . . Robots Rewired 18 | . . . . . . . . . . . . . . . 1 . . . . . . . . 17 . . . . . . . . . . . . . . . . Allies Hacked 1 | . . . . . . . . . . . . . . . . . . . . . . . . . . . . . . . . . . . . . . 1 . . Hacks Repelled . | . . . . . . . . . . . . . . . . . . . . . . . . . . . . . . . . . . . . . . . . . Allies | -11 -10 -10 -9 -9 -9 -8 -8 -8 -7 -7 -7 -7 -7 -7 -6 -6 -6 -6 -6 -6 -6 -5 -5 -5 -5 -5 -5 -4 -4 -4 -4 -4 -3 -3 -2 -2 -2 -1 -1 -1 -------- Run | Jun Mat Min Mat Min Exi Min Mat Sto Fac Was Fac Low Low Dat Pro Fac Was Fac Low Low Zio Pro Fac Ext Cet Arc Hub Fac Was Fac Arm Lab Res Tes Res Qua Sec Acc Com Ac0 Total Allies 109 | . . 3 . 1 . . . 2 4 19 1 . . . 2 4 . 1 . . . . 2 25 5 . . 12 20 . . . 1 . 2 . 2 3 . . Largest Group 20 | . . 3 . 1 . . . 2 2 19 15 6 . . 1 3 . 1 . . . . 2 13 11 4 4 4 20 14 . . 1 1 1 . 1 1 . . Highest-Rated Group 793 | . . 40 . 31 . . . 62 52 465 389 147 . . 96 93 . 26 . . . . 52 436 677 384 384 150 793 567 . . 26 21 45 . 26 45 . . Highest-Rated Ally 159 | . . 16 . 31 . . . 31 26 36 36 31 . . 96 31 . 26 . . . . 26 159 159 96 96 47 50 46 . . 26 21 45 . 26 45 . . Total Orders 137 | . . . . . . . . . . . . . . . . 5 3 29 21 12 . 27 10 22 1 . 3 4 . . . . . . . . . . . . STAY 10 | . . . . . . . . . . . . . . . . 1 . . . . . 1 4 . . . 2 2 . . . . . . . . . . . . FOLLOW 12 | . . . . . . . . . . . . . . . . 1 . . . . . 4 4 . . . 1 2 . . . . . . . . . . . . EXPLORE 25 | . . . . . . . . . . . . . . . . . . 2 9 5 . 5 . 4 . . . . . . . . . . . . . . . . RETURN 90 | . . . . . . . . . . . . . . . . 3 3 27 12 7 . 17 2 18 1 . . . . . . . . . . . . . . . Ally Attacks 1339 | . . 25 . 4 . . . 8 . 157 149 24 . . 11 41 34 158 111 52 . 87 3 229 95 17 39 47 13 35 . . . . . . . . . . Total Damage 29424 | . . 268 . 41 . . . 125 . 4400 2310 537 . . 419 850 772 2448 2026 827 . 1537 25 3948 3293 625 1817 1211 1103 842 . . . . . . . . . . Kills 206 | . . 4 . . . . . 1 . 9 26 4 . . 3 10 2 25 15 8 . 15 . 42 14 5 6 7 4 6 . . . . . . . . . . Allies Corrupted 5 | . . . . . . . . . . . 1 2 . . . . . . . . . . . . . . 1 . . 1 . . . . . . . . . . Allies Melted . | . . . . . . . . . . . . . . . . . . . . . . . . . . . . . . . . . . . . . . . . . Intel | -11 -10 -10 -9 -9 -9 -8 -8 -8 -7 -7 -7 -7 -7 -7 -6 -6 -6 -6 -6 -6 -6 -5 -5 -5 -5 -5 -5 -4 -4 -4 -4 -4 -3 -3 -2 -2 -2 -1 -1 -1 ------- Run | Jun Mat Min Mat Min Exi Min Mat Sto Fac Was Fac Low Low Dat Pro Fac Was Fac Low Low Zio Pro Fac Ext Cet Arc Hub Fac Was Fac Arm Lab Res Tes Res Qua Sec Acc Com Ac0 Robot Analysis Total 5 | . 3 . 1 . . . . . . . . . . . . . . . . . . . 1 . . . . . . . . . . . . . . . . . Derelict Logs Recovered 12 | . . 1 . . . . . . . . . 1 1 . . . . . 2 2 2 3 . . . . . . . . . . . . . . . . . . Drone Launches 133 | . . . . . . . . . . . . . . . . 8 6 45 17 8 4 14 2 27 2 . . . . . . . . . . . . . . . Drone Recoveries 130 | . . . . . . . . . . . . . . . . 8 6 45 13 12 . 17 3 25 1 . . . . . . . . . . . . . . . Exploration | -11 -10 -10 -9 -9 -9 -8 -8 -8 -7 -7 -7 -7 -7 -7 -6 -6 -6 -6 -6 -6 -6 -5 -5 -5 -5 -5 -5 -4 -4 -4 -4 -4 -3 -3 -2 -2 -2 -1 -1 -1 ------------- Run | Jun Mat Min Mat Min Exi Min Mat Sto Fac Was Fac Low Low Dat Pro Fac Was Fac Low Low Zio Pro Fac Ext Cet Arc Hub Fac Was Fac Arm Lab Res Tes Res Qua Sec Acc Com Ac0 Turns Passed 50915 | 62 836 1183 2144 619 1699 1281 1769 966 2954 281 964 552 903 78 662 2364 194 1600 272 291 777 557 1007 723 400 4808 720 3172 890 2012 1700 950 799 1577 1311 703 1450 1419 3650 616 Spaces Moved 43111 | 35 425 673 1037 352 786 500 644 250 5792 273 1043 654 781 108 687 2277 214 1617 244 269 1044 519 1038 527 213 410 597 2638 511 1747 1173 319 1062 1460 1491 935 1405 1836 4750 775 Core 638 | 5 . . . . . . . 1 . . . . . . . . . . . . . . . . . 361 . . . . . 271 . . . . . . . . Treads 4359 | 30 425 673 1037 352 697 500 480 165 . . . . . . . . . . . . . . . . . . . . . . . . . . . . . . . . Legs 255 | . . . . . 89 . 164 2 . . . . . . . . . . . . . . . . . . . . . . . . . . . . . . . . Wheels 79 | . . . . . . . . 79 . . . . . . . . . . . . . . . . . . . . . . . . . . . . . . . . Hover 32394 | . . . . . . . . 3 549 273 1043 654 781 108 687 2277 214 1617 244 269 1044 519 1038 527 213 49 597 2638 511 1747 1173 48 1062 1460 1491 935 1293 1836 4719 775 Flight 5243 | . . . . . . . . . 5243 . . . . . . . . . . . . . . . . . . . . . . . . . . . . . . . Fastest Speed 28 | 50 160 160 160 160 120 240 190 170 28 71 71 71 71 71 71 71 71 71 71 71 71 71 68 68 68 68 68 65 61 61 51 50 50 50 46 46 46 40 42 47 Average Speed 79 | 144 160 160 161 160 170 240 224 224 32 71 71 71 71 71 71 71 71 73 71 71 71 71 68 69 69 1152 70 67 64 61 56 50 50 51 47 46 47 41 49 50 Slowest Speed 1350 | 160 240 240 240 160 320 240 320 1350 77 71 71 71 71 71 71 141 71 144 71 71 71 71 68 138 138 1300 144 138 141 61 143 55 50 137 134 46 134 132 134 130 Overloaded Moves . | . . . . . . . . . . . . . . . . . . . . . . . . . . . . . . . . . . . . . . . . . Propulsion Burnouts . | . . . . . . . . . . . . . . . . . . . . . . . . . . . . . . . . . . . . . . . . . Robots Hopped 18 | . . . . . . . . . 18 . . . . . . . . . . . . . . . . . . . . . . . . . . . . . . . Cave-ins Triggered . | . . . . . . . . . . . . . . . . . . . . . . . . . . . . . . . . . . . . . . . . . Teleports 3 | . . . . . . . . . . . . . . . . . . . . . . . . . . . . . . . . . . . . . 1 . 1 1 Spacefolds 4 | . . . . . . . . . . . . . . . . . . . . . . . . . . . . . . . . . . . . . 3 . 1 . Microwarps 9 | . . . . . . . . . . . . . . . . . . . . . . . . . . . . . . . . . . . . . 8 . 1 . Exploration Rate (%) 63 | 3 76 99 62 57 74 93 59 34 77 95 27 83 66 69 75 40 68 48 98 95 83 97 24 78 64 67 47 60 89 30 62 95 29 86 31 70 67 25 65 35 Regions Visited 40 Branch Regions 24 Pre-discovered Areas 4 | . . . . . 1 . . . . . . 1 . 1 . . . . . . 1 . . . . . . . . . . . . . . . . . . . Known Exits Taken 27 | . . . 1 . 1 . 1 1 . . 1 1 1 1 1 . . 1 1 1 1 1 1 1 1 1 1 . . 1 1 1 1 1 1 1 1 . . . Unknown Exits Taken 7 | 1 1 1 . 1 . 1 . . . . . . . . . . . . . . . . . . . . . . . . . . . . . . . 1 1 . Scrap Searched 27 | . . 1 . 3 . 2 . . . . . 1 4 . . . . . 3 5 4 4 . . . . . . . . . . . . . . . . . . Spaces Dug 654 | . . . 4 . . 9 . 2 70 2 11 2 13 . 34 34 . 45 . 5 1 3 19 1 . . 9 76 1 48 17 21 16 42 62 23 12 54 18 . Terrain Destroyed 1612 | . . 2 28 . 29 24 91 32 82 2 13 8 91 . 79 43 1 127 . 6 1 6 25 4 7 3 212 166 3 63 41 21 24 86 67 32 48 70 71 4 Melee 481 | . . . 4 . . . . 2 69 1 8 2 12 . 7 30 . 40 . 4 1 . 15 1 . . 6 64 . 42 7 . 12 32 52 20 9 37 4 . Projectile 402 | . . 2 . . 16 5 1 1 . 1 5 6 13 . 6 12 1 13 . 2 . 6 10 3 7 3 9 35 3 20 34 21 12 22 12 11 28 33 48 1 AOE 687 | . . . 24 . 12 19 90 29 11 . . . 64 . 64 . . 74 . . . . . . . . 195 66 . . . . . 25 . . 8 . 6 . Terrain Rammed . | . . . . . . . . . . . . . . . . . . . . . . . . . . . . . . . . . . . . . . . . . Walls Destroyed . | . . . . . . . . . . . . . . . . . . . . . . . . . . . . . . . . . . . . . . . . . Machines Disabled . | . . . . . . . . . . . . . . . . . . . . . . . . . . . . . . . . . . . . . . . . . Actions | -11 -10 -10 -9 -9 -9 -8 -8 -8 -7 -7 -7 -7 -7 -7 -6 -6 -6 -6 -6 -6 -6 -5 -5 -5 -5 -5 -5 -4 -4 -4 -4 -4 -3 -3 -2 -2 -2 -1 -1 -1 --------- Run | Jun Mat Min Mat Min Exi Min Mat Sto Fac Was Fac Low Low Dat Pro Fac Was Fac Low Low Zio Pro Fac Ext Cet Arc Hub Fac Was Fac Arm Lab Res Tes Res Qua Sec Acc Com Ac0 Total 56244 | 43 512 729 1306 391 995 536 846 519 6670 337 1226 716 1067 108 801 2864 235 1939 336 361 1075 700 1280 857 440 479 802 3725 1048 2535 2083 1069 1255 2102 1914 1138 1948 2340 5931 986 Wait 8595 | . 37 9 85 26 39 3 59 175 611 42 126 35 197 . 51 393 . 213 81 81 2 168 181 202 168 54 94 759 478 596 711 653 120 455 239 103 369 277 699 4 Move 42907 | 34 424 672 1036 351 785 499 643 249 5756 272 1042 653 780 107 686 2277 213 1616 243 268 1043 518 1037 526 212 409 596 2638 510 1746 1172 318 1061 1459 1490 934 1303 1835 4720 774 Hop 18 | . . . . . . . . . 18 . . . . . . . . . . . . . . . . . . . . . . . . . . . . . . . Pick Up 345 | 2 1 5 20 1 11 . 13 3 31 3 7 1 10 . 1 14 . 11 2 2 4 2 8 8 7 1 6 17 5 11 10 21 6 14 9 10 14 3 37 14 Fast Attach 256 | 6 5 2 6 . 8 2 12 6 13 . 2 . . . . 4 1 . 1 . 6 . 1 1 6 . 13 11 12 5 13 10 3 3 . 6 26 15 41 16 Attach 232 | . 1 1 2 2 6 . 5 4 12 . . . . . . 7 1 5 . . 2 . 6 3 . . 7 16 3 11 15 . 2 . 5 13 25 25 27 26 Detach 170 | . . . 1 . 8 1 2 1 15 . . . . . . 4 . 1 . . . . 2 2 2 . 1 11 4 10 10 6 . . 2 7 17 26 22 15 Swap 488 | 1 1 7 21 . 9 4 14 11 29 . 3 3 8 1 15 30 1 5 1 1 5 2 8 4 6 2 10 56 8 34 44 1 9 30 34 4 17 15 32 2 Drop 491 | . 1 1 23 2 10 2 24 2 39 . 9 1 10 . 1 14 . 8 2 2 10 2 3 8 11 1 5 21 17 16 14 25 7 15 12 16 30 15 86 26 Fire 1708 | . 41 20 101 9 65 18 65 65 33 15 23 21 42 . 34 64 19 27 1 2 . 6 14 23 28 12 54 109 4 59 74 21 23 77 58 16 109 67 182 107 Melee 848 | . . . 4 . 54 . . 2 113 5 14 2 14 . 12 56 . 47 3 4 2 . 20 3 . . 16 87 7 46 20 14 24 48 60 29 38 62 40 2 Ram 2 | . . . . . . . . . . . . . . . . . . . . . . . . . . . . . . 1 . . . 1 . . . . . . Kick 5 | . . . . . . . 5 . . . . . . . . . . . . . . . . . . . . . . . . . . . . . . . . . Crush 32 | . 1 12 7 . . 7 4 1 . . . . . . . . . . . . . . . . . . . . . . . . . . . . . . . . Escape Stasis 44 | . . . . . . . . . . . . . . . . . . . . . . . . . . . . . . . . . . . 5 . . . 39 . Rewire 79 | . . . . . . . . . . . . . . . 1 . . . . . . . . 72 . . . . . . . . . . . . . . 6 . Trap 6 | . . . . . . . . . . . . . 6 . . . . . . . . . . . . . . . . . . . . . . . . . . . Miscellaneous 18 | . . . . . . . . . . . . . . . . 1 . 6 2 1 1 2 . 5 . . . . . . . . . . . . . . . . Route ------- -11/Junkyard -10/Materials (discovered 3 exits: *Mat x2 / [*Min]) -10/Mines (discovered 3 exits: *Mat x2 / [*Sub]) -9/Materials (discovered 2 exits: *Mat / *Min) -9/Mines (discovered 3 exits: *Mat x2 / *Exi) -9/Exiles -8/Mines (discovered 2 exits: *Mat x2) -8/Materials (discovered 2 exits: *Fac / *Sto) -8/Storage -7/Factory (discovered 3 exits: *Fac / Low x2) -7/Waste -7/Factory (discovered 3 exits: *Fac / *Low x2) -7/Lower Caves -7/Lower Caves (discovered 2 exits: *Fac / *Dat) -7/Data Miner -6/Proximity Caves -6/Factory (discovered 4 exits: *Fac x2 / Low x2) -6/Waste -6/Factory (discovered 4 exits: *Fac x2 / *Low x2) -6/Lower Caves -6/Lower Caves (discovered 2 exits: *Fac / *Zio) -6/Zion -5/Proximity Caves -5/Factory (discovered 5 exits: Fac x2 / Upp x2 / *Ext) -5/Extension (discovered 2 exits: *Fac / *Cet) -5/Cetus (discovered 2 exits: *Fac / *Arc) -5/Archives -5/Hub_04(d) -4/Factory (discovered 7 exits: *Res x4 / *Upp x2 / Arm) -4/Waste -4/Factory (discovered 4 exits: Res / *Upp x2 / *Arm) -4/Armory -4/Lab -3/Research (discovered 3 exits: *Res / *Tes x2) -3/Testing -2/Research (discovered 4 exits: *Acc x2 / *Qua x2) -2/Quarantine (discovered 2 exits: *Acc / *Sec) -2/Section 7 -1/Access -1/Command (discovered 3 exits: [*Sur x2] / [*Ac0]) -1/Access_0 Near Former Tau Ceti IV History --------- Turn | Location | Event 3 | -11/Junkyard | Discovered new exit (range 16) 63 | -11/Junkyard | Entered Materials 254 | -10/Materials | Discovered new exit (range 16) 310 | -10/Materials | Build established: Mutant 594 | -10/Materials | Discovered new exit (range 15) 807 | -10/Materials | Discovered new exit (range 12) 899 | -10/Materials | Entered Mines 915 | -10/Mines | Discovered new exit (range 8) 941 | -10/Mines | Discovered new exit (range 12) 1002 | -10/Mines | Discovered new exit (range 4) 1013 | -10/Mines | Assisted by bots powering up and referring to "LRC-V3" 1145 | -10/Mines | A weapon hastily lodged in a ceiling crevice suddenly fell to the ground 1477 | -10/Mines | Core integrity fell below 50% 1754 | -10/Mines | Found a damaged Exp. Sensor Array with a note attached 1757 | -10/Mines | Found Prototype Device 1808 | -10/Mines | Build established: Scavenger-Mutant 2082 | -10/Mines | Entered Materials 2082 | -9/Materials | Evolved 2 slots: Propulsion x1, Utility x1 2083 | -9/Materials | Identified exit to Mines 2598 | -9/Materials | Identified Exp. Sensor Array 3411 | -9/Materials | Discovered new exit (range 5) 4226 | -9/Materials | Entered Mines 4232 | -9/Mines | Found the Drone Emporium 4240 | -9/Mines | Found Prototype Device 4242 | -9/Mines | Met a Derelict bent on vengeance 4253 | -9/Mines | Assembled infested the area 4357 | -9/Mines | Escorted by a lone wolf Derelict 4506 | -9/Mines | Discovered new exit (range 5) 4515 | -9/Mines | Build established: Mutant 4557 | -9/Mines | Discovered new exit (range 7) 4839 | -9/Mines | Discovered new exit (range 5) 4845 | -9/Mines | Entered Exiles 4846 | -9/Exiles | Identified exit to Mines 4859 | -9/Exiles | Identified Decoy Drone Bay 4890 | -9/Exiles | Met 8R-AWN 4916 | -9/Exiles | Met EX-HEX 5001 | -9/Exiles | Met EX-DEC 5030 | -9/Exiles | Learned location of Zion (-6) 5178 | -9/Exiles | Met EX-BIN 5352 | -9/Exiles | Build established: Scavenger-Mutant 5397 | -9/Exiles | Attacked by the Exiles 5530 | -9/Exiles | Core integrity fell below 50% 5570 | -9/Exiles | Destroyed 8R-AWN 5588 | -9/Exiles | Found Prototype Ballistic Gun 5605 | -9/Exiles | Found Prototype Processor 5606 | -9/Exiles | Identified 8R-AWN's Boregun 5959 | -9/Exiles | Destroyed EX-BIN 5966 | -9/Exiles | Destroyed EX-HEX 6003 | -9/Exiles | Destroyed EX-DEC 6014 | -9/Exiles | Found Prototype Processor 6544 | -9/Exiles | Entered Mines 6619 | -8/Mines | Discovered new exit (range 12) 6918 | -8/Mines | Discovered new exit (range 16) 7825 | -8/Mines | Entered Materials 7825 | -8/Materials | Evolved 2 slots: Utility x2 8032 | -8/Materials | Garrison activated, responded to threat 8704 | -8/Materials | Build established: Mutant 8714 | -8/Materials | Discovered new exit (range 16) 9538 | -8/Materials | Discovered new exit (range 7) 9552 | -8/Materials | Identified exit to Storage 9594 | -8/Materials | Entered Storage 10132 | -8/Storage | Met a pair of Derelict thieves 10190 | -8/Storage | Core integrity fell below 50% 10398 | -8/Storage | Discovered new exit (range 11) 10442 | -8/Storage | Core integrity fell below 20% 10544 | -8/Storage | Identified exit to Factory 10560 | -8/Storage | Entered Factory 10560 | -7/Factory | Evolved 2 slots: Propulsion x1, Utility x1 10724 | -7/Factory | Identified exit to Lower Caves 11118 | -7/Factory | Build established: Hacker-Sprinter 11589 | -7/Factory | Repaired Broken Lgt. Neutrino Core? 11740 | -7/Factory | Discovered new exit (range 11) 11851 | -7/Factory | Repaired Cmb. Antigrav System? 12481 | -7/Factory | Fabricated Hcp. Storage Unit (x1) 12607 | -7/Factory | Fabricated Cmb. Antigrav System? 12674 | -7/Factory | Fabricated Cmb. Antigrav System (x2) 13392 | -7/Factory | Build established: Machinist-Mutant 13514 | -7/Factory | Manually triggered Chute Trap 13514 | -7/Factory | Sucked down chute 13514 | -7/Factory | Entered Waste 13532 | -7/Waste | Spotted C-40 Crusher 13534 | -7/Waste | Spotted C-40 Crusher 13541 | -7/Waste | Spotted C-40 Crusher 13582 | -7/Waste | Warlord forces began an assault 13667 | -7/Waste | Allies destroyed C-40 Crusher 13668 | -7/Waste | Spotted C-40 Crusher 13676 | -7/Waste | Allies destroyed C-40 Crusher 13724 | -7/Waste | Discovered new exit (range 15) 13765 | -7/Waste | Identified exit to Factory 13795 | -7/Waste | Entered Factory 13795 | -7/Factory | Accompanied by 15 allies 14114 | -7/Factory | Build established: Hacker-Mutant 14195 | -7/Factory | First assault squad dispatched 14233 | -7/Factory | Discovered new exit (range 6) 14545 | -7/Factory | Fabricated Lrg. Storage Unit (x1) 14638 | -7/Factory | Fabricated Adv. Hacking Suite (x1) 14759 | -7/Factory | Entered Lower Caves 14759 | -7/Lower Caves | Accompanied by 6 allies 15045 | -7/Lower Caves | Ambushed by wild Derelicts 15300 | -7/Lower Caves | Discovered new exit (range 9) 15305 | -7/Lower Caves | Identified exit to Lower Caves 15311 | -7/Lower Caves | Entered another Lower Caves area 15346 | -7/Lower Caves | Encountered a Warlord checkpoint 15353 | -7/Lower Caves | Learned 4 Factory zone layouts 15353 | -7/Lower Caves | Discovered new exit (range 5) 15363 | -7/Lower Caves | Identified exit to Factory 15812 | -7/Lower Caves | Attracted the attention of an 0b10 checkpoint 16204 | -7/Lower Caves | Discovered new exit (range 4) 16214 | -7/Lower Caves | Identified exit to Data Miner 16214 | -7/Lower Caves | Entered Data Miner 16214 | -7/Data Miner | Discovered new exit (range 6) 16228 | -7/Data Miner | Met Data Miner 16242 | -7/Data Miner | Learned location of Section 7 (-2) 16242 | -7/Data Miner | Acquired the access code to Warlord's prototype stash 16253 | -7/Data Miner | Received God Mode back door access code from Data Miner 16268 | -7/Data Miner | Identified exit to Proximity Caves 16292 | -7/Data Miner | Entered Proximity Caves 16418 | -6/Proximity Caves | Escorted by Enhanced Grunt 16946 | -6/Proximity Caves | Discovered exit to Factory (range 7) 16954 | -6/Proximity Caves | Entered Factory 16954 | -6/Factory | Evolved 2 slots: Utility x2 17556 | -6/Factory | Fabricated Combat Drone Bay? 17619 | -6/Factory | Fabricated Combat Drone Bay? 17667 | -6/Factory | Fabricated Weapon Mount (x2) 17759 | -6/Factory | Repaired Exp. Sensor Array? 18184 | -6/Factory | Identified exit to Lower Caves 18513 | -6/Factory | Discovered new exit (range 14) 18536 | -6/Factory | Discovered new exit (range 12) 18548 | -6/Factory | Identified exit to Factory 19026 | -6/Factory | Incoming investigation squad redirected 19038 | -6/Factory | Cargo convoy interrupted 19092 | -6/Factory | Fabricated Cmb. Antigrav System (x2) 19117 | -6/Factory | Incoming assault squad redirected 19318 | -6/Factory | Manually triggered Chute Trap 19318 | -6/Factory | Sucked down chute 19318 | -6/Factory | Entered Waste 19325 | -6/Waste | Spotted C-40 Crusher 19333 | -6/Waste | EMP discharged 19333 | -6/Waste | System corruption reached 10% 19333 | -6/Waste | Crushed by Compactor (1 part destroyed, 1 dropped) 19374 | -6/Waste | Allies destroyed C-40 Crusher 19389 | -6/Waste | Spotted C-40 Crusher 19393 | -6/Waste | Spotted C-40 Crusher 19421 | -6/Waste | Allies destroyed C-40 Crusher 19433 | -6/Waste | EMP discharged 19463 | -6/Waste | Spotted C-40 Crusher 19503 | -6/Waste | Discovered new exit (range 12) 19511 | -6/Waste | Identified exit to Factory 19512 | -6/Waste | Entered Factory 19797 | -6/Factory | Incoming investigation squad redirected 20381 | -6/Factory | Discovered exit to Factory (range 15) 20503 | -6/Factory | Discovered exit to Factory (range 19) 20678 | -6/Factory | Spotted B-75 Beast 20812 | -6/Factory | Incoming investigation squad redirected 20877 | -6/Factory | Fabricated Cmb. Antigrav System (x2) 20912 | -6/Factory | First assault squad dispatched 21112 | -6/Factory | Entered Lower Caves 21221 | -6/Lower Caves | Learned Factory stockpile data 21354 | -6/Lower Caves | Discovered new exit (range 13) 21383 | -6/Lower Caves | Identified exit to Lower Caves 21384 | -6/Lower Caves | Entered another Lower Caves area 21384 | -6/Lower Caves | Accompanied by 4 allies 21392 | -6/Lower Caves | Discovered exit to Factory (range 17) 21436 | -6/Lower Caves | Learned Factory security intel 21452 | -6/Lower Caves | Encountered a Warlord checkpoint 21463 | -6/Lower Caves | Learned Armory emergency access door positions 21463 | -6/Lower Caves | Learned Factory stockpile data 21463 | -6/Lower Caves | Learned Extension security intel 21463 | -6/Lower Caves | Learned Research terminal intel 21463 | -6/Lower Caves | Learned Armory garrison access intel 21509 | -6/Lower Caves | Discovered new exit (range 53) 21550 | -6/Lower Caves | Learned Factory terminal intel 21674 | -6/Lower Caves | Identified exit to Zion 21675 | -6/Lower Caves | Entered Zion 21710 | -6/Zion | System corruption cleaned by Quarantine Array 21898 | -6/Zion | Found CR-A16's Pointy Stick 21998 | -6/Zion | Learned Factory security intel 22003 | -6/Zion | Learned 8 Factory zone layouts 22066 | -6/Zion | Learned location of Testing (-3) 22188 | -6/Zion | Visited the Megawrench Repair Shop 22188 | -6/Zion | Megawrench repaired 9 parts 22438 | -6/Zion | Discovered new exit (range 15) 22447 | -6/Zion | Identified exit to Proximity Caves 22452 | -6/Zion | Entered Proximity Caves 22452 | -5/Proximity Caves | Accompanied by 4 allies 22523 | -5/Proximity Caves | Learned location of 1 exit from Factory 22733 | -5/Proximity Caves | Learned Factory trap positions 23004 | -5/Proximity Caves | Learned Factory trap positions 23005 | -5/Proximity Caves | Discovered exit to Factory (range 7) 23009 | -5/Proximity Caves | Entered Factory 23009 | -5/Factory | Accompanied by 1 ally 23009 | -5/Factory | Evolved 2 slots: Propulsion x1, Utility x1 23010 | -5/Factory | Identified exit to Upper Caves 23011 | -5/Factory | Identified exit to Factory 23012 | -5/Factory | Identified exit to Extension 23013 | -5/Factory | Loaded intel: 96 trap records 23016 | -5/Factory | Loaded intel: 28 terminal locations 23632 | -5/Factory | Central database locked down 23913 | -5/Factory | Fabricated Tri-rail Accelerator (x1) 23960 | -5/Factory | Fabricated Tri-rail Accelerator (x1) 24016 | -5/Factory | Entered Extension 24085 | -5/Extension | Rescued a captive Derelict 24286 | -5/Extension | Rescued a captive Derelict 24287 | -5/Extension | Rescued a captive Derelict 24317 | -5/Extension | Spotted B-75 Beast 24323 | -5/Extension | Spotted B-75 Beast 24332 | -5/Extension | Allies destroyed B-75 Beast 24332 | -5/Extension | Allies destroyed B-75 Beast 24628 | -5/Extension | Rescued a captive Derelict 24630 | -5/Extension | Rescued a captive Derelict 24638 | -5/Extension | Rescued A7 24683 | -5/Extension | Rescued a captive Derelict 24684 | -5/Extension | Rescued a captive Derelict 24697 | -5/Extension | Discovered exit to Factory (range 10) 24698 | -5/Extension | Discovered new exit (range 6) 24704 | -5/Extension | Identified exit to Cetus 24739 | -5/Extension | Entered Cetus 24739 | -5/Cetus | Accompanied by 11 allies (A7) 24744 | -5/Cetus | Acquired a Cetus Manufacturing Module code from A7 24769 | -5/Cetus | Spotted Cetus Guard 24769 | -5/Cetus | Spotted Cetus Guard 24770 | -5/Cetus | Spotted Cetus Guard 24770 | -5/Cetus | Spotted Cetus Guard 24782 | -5/Cetus | Allies destroyed Cetus Guard 24786 | -5/Cetus | Allies destroyed Cetus Guard 24787 | -5/Cetus | Destroyed Cetus Guard 24790 | -5/Cetus | Allies destroyed Cetus Guard 24848 | -5/Cetus | Started Cetus Manufacturing Module 24873 | -5/Cetus | Manufactured an Enhanced Grunt 24898 | -5/Cetus | Manufactured an Enhanced Grunt 24923 | -5/Cetus | Manufactured an Enhanced Grunt 24948 | -5/Cetus | Manufactured an Enhanced Grunt 24973 | -5/Cetus | Manufactured an Enhanced Grunt 24981 | -5/Cetus | Discovered new exit (range 16) 25002 | -5/Cetus | P-70 Sage assimilated allied 22-GRE(b) 25032 | -5/Cetus | Spotted Cetus Guard 25032 | -5/Cetus | Spotted Cetus Guard 25041 | -5/Cetus | Spotted Cetus Guard 25046 | -5/Cetus | Spotted Cetus Guard 25049 | -5/Cetus | Destroyed Cetus Guard 25054 | -5/Cetus | Destroyed Cetus Guard 25061 | -5/Cetus | Allies destroyed Cetus Guard 25065 | -5/Cetus | Extracted ID and sensor layout for unrecognized location from A7's data core 25067 | -5/Cetus | Found Prototype Protection 25067 | -5/Cetus | Identified Med. Regenerative Plating 25074 | -5/Cetus | Discovered exit to Factory (range 15) 25093 | -5/Cetus | Found Prototype Device 25093 | -5/Cetus | Identified Exp. Thermal Shield 25122 | -5/Cetus | Identified exit to Archives 25139 | -5/Cetus | Entered Archives 25139 | -5/Archives | Accompanied by 4 allies 29920 | -5/Archives | Discovered new exit (range 15) 29932 | -5/Archives | Identified exit to Hub_04(d) 29947 | -5/Archives | Entered Hub_04(d) 29947 | -5/Hub_04(d) | Accompanied by 4 allies 30134 | -5/Hub_04(d) | Discovered exit to Factory (range 8) 30154 | -5/Hub_04(d) | Garrison activated, responded to threat 30316 | -5/Hub_04(d) | Network Hub disabled 30335 | -5/Hub_04(d) | Spotted Lightning 30337 | -5/Hub_04(d) | Spotted Lightning 30353 | -5/Hub_04(d) | Spotted Lightning 30353 | -5/Hub_04(d) | Spotted Lightning 30353 | -5/Hub_04(d) | Spotted Lightning 30353 | -5/Hub_04(d) | Spotted Lightning 30360 | -5/Hub_04(d) | Destroyed Lightning 30360 | -5/Hub_04(d) | Destroyed Lightning 30384 | -5/Hub_04(d) | Destroyed Lightning 30410 | -5/Hub_04(d) | Found Prototype Device 30410 | -5/Hub_04(d) | Identified Exp. Phase Shifter 30417 | -5/Hub_04(d) | Found Prototype Device 30417 | -5/Hub_04(d) | Identified Exp. EM Disruption Field 30438 | -5/Hub_04(d) | System corruption reached 10% 30447 | -5/Hub_04(d) | Destroyed Lightning 30451 | -5/Hub_04(d) | Destroyed Lightning 30455 | -5/Hub_04(d) | Found Prototype Energy Cannon 30459 | -5/Hub_04(d) | Destroyed Lightning 30550 | -5/Hub_04(d) | Core integrity fell below 50% 30574 | -5/Hub_04(d) | Lost 6 parts (1p4u1w) 30593 | -5/Hub_04(d) | Found Prototype Energy Cannon 30597 | -5/Hub_04(d) | Found Exp. Targeting Computer 30600 | -5/Hub_04(d) | Found Exp. Targeting Computer 30667 | -5/Hub_04(d) | Entered Factory 30667 | -4/Factory | Evolved 2 slots: Power x1, Propulsion x1 30668 | -4/Factory | Loaded intel: 91 trap records 30803 | -4/Factory | Identified exit to Upper Caves 30803 | -4/Factory | Identified exit to Armory 31102 | -4/Factory | Found Quantum Capacitor 31378 | -4/Factory | Identified exit to Research 31395 | -4/Factory | Identified EMDS (x2) 31873 | -4/Factory | Repaired Cmb. Antigrav System 31943 | -4/Factory | Repaired Cmb. Antigrav System? 33207 | -4/Factory | Cargo convoy interrupted 33224 | -4/Factory | Incoming assault squad redirected 33597 | -4/Factory | Repaired Antimatter Reactor 33653 | -4/Factory | Repaired Mic. Fission Core 33722 | -4/Factory | Repaired Cmb. Antigrav System 33839 | -4/Factory | Sucked down chute 33839 | -4/Factory | Entered Waste 33840 | -4/Waste | Joined by Warlord forces that had cleared the area 34010 | -4/Waste | Discovered new exit (range 14) 34593 | -4/Waste | Identified exit to Factory 34610 | -4/Waste | A Compactor rumbled back to life 34610 | -4/Waste | Spotted C-40 Crusher 34612 | -4/Waste | Allies destroyed C-40 Crusher 34729 | -4/Waste | Entered Factory 34729 | -4/Factory | Accompanied by 14 allies 35654 | -4/Factory | Discovered exit to Research (range 20) 35954 | -4/Factory | Incoming investigation squad redirected 36040 | -4/Factory | Incoming investigation squad redirected 36741 | -4/Factory | Entered Armory 36948 | -4/Armory | Fabricated Cmb. Linear Gravjet (x2) 36989 | -4/Armory | Repaired Cmb. Antigrav System 37016 | -4/Armory | Fabricated Cmb. Linear Gravjet (x2) 37083 | -4/Armory | Repaired Tri-rail Accelerator 37170 | -4/Armory | Found Adv. Force Booster 37910 | -4/Armory | Fabricated Mni. Smartbomb Launcher (x1) 38059 | -4/Armory | Discovered new exit (range 18) 38090 | -4/Armory | Repaired Centrium Medium Armor Plating? 38147 | -4/Armory | Repaired Adv. Terrain Scanner? 38228 | -4/Armory | Repaired Cmb. Linear Gravjet 38293 | -4/Armory | Repaired Lgt. Antimatter Reactor 38440 | -4/Armory | Identified exit to Lab 38441 | -4/Armory | Entered Lab 38501 | -4/Lab | Discovered exit to Research (range 9) 38506 | -4/Lab | Hidden lab's door opened automatically 38506 | -4/Lab | Sensor layout match revealed 38507 | -4/Lab | Gained access to the hidden lab's interior 38658 | -4/Lab | Found Alien Artifact 38670 | -4/Lab | Found Alien Artifact 38670 | -4/Lab | Identified Integrated Mediator 38670 | -4/Lab | Installed Integrated Mediator, increased core attachment efficiency. 38683 | -4/Lab | Found Alien Artifact 38683 | -4/Lab | Identified Core Expander 38683 | -4/Lab | Installed Core Expander, added new Propulsion slot 38734 | -4/Lab | Found Prototype Hackware 38736 | -4/Lab | Found Prototype Device 38933 | -4/Lab | Found Prototype Energy Cannon 38935 | -4/Lab | Found Prototype Energy Gun 39327 | -4/Lab | Found Alien Artifact 39383 | -4/Lab | Identified Quantum Router 39391 | -4/Lab | Entered Research 39391 | -3/Research | Evolved 2 slots: Power x1, Utility x1 39392 | -3/Research | Loaded intel: 21 terminal locations 39467 | -3/Research | Identified exit to Testing 39525 | -3/Research | Identified AEGIS Remote Shield 39591 | -3/Research | Revision forces began assault on 0b10 39656 | -3/Research | Identified Warp Cannon 39656 | -3/Research | Identified Core Reset Matrix 39656 | -3/Research | Identified Transdimensional Reconstructor 39758 | -3/Research | Build established: Wizard-Scout 39797 | -3/Research | Spotted B-86 Titan 39906 | -3/Research | Met up with Revision 17++ 39983 | -3/Research | Discovered new exit (range 8) 40037 | -3/Research | Fabricated Zero-point Reactor (x1) 40091 | -3/Research | Research terminal network offline 40162 | -3/Research | Repaired Cmb. Linear Gravjet 40183 | -3/Research | Repaired Lgt. Antimatter Reactor 40190 | -3/Research | Entered Testing 40190 | -3/Testing | Accompanied by 1 ally 40319 | -3/Testing | Fabricated Zero-point Reactor (x1) 40581 | -3/Testing | Found Prototype Device 40595 | -3/Testing | Identified Exp. Thermal Defense Suite 40625 | -3/Testing | Found Prototype Device 40646 | -3/Testing | Identified System Purifier 40688 | -3/Testing | Discovered new exit (range 19) 40696 | -3/Testing | Spotted PD-MM3LNQULC5 40773 | -3/Testing | Found Prototype Ballistic Gun 40774 | -3/Testing | Identified Hyp. Multirail 40828 | -3/Testing | Found Hvy. Regenerative Plating 41034 | -3/Testing | Build established: Wizard-Mutant 41062 | -3/Testing | Spotted PP-8TY81BJCCH 41067 | -3/Testing | Destroyed PP-8TY81BJCCH 41144 | -3/Testing | Incoming investigation squad redirected 41146 | -3/Testing | Fabricated Exp. Terrain Scan Processor (x1) 41323 | -3/Testing | Repaired Cmb. Linear Gravjet 41392 | -3/Testing | Repaired Cmb. Antigrav System 41462 | -3/Testing | Repaired Cmb. Antigrav System 41767 | -3/Testing | Identified exit to Research 41767 | -3/Testing | Entered Research 41767 | -2/Research | Evolved 2 slots: Propulsion x1, Utility x1 41916 | -2/Research | Identified exit to Quarantine 42296 | -2/Research | Discovered new exit (range 14) 42334 | -2/Research | Discovered new exit (range 16) 43078 | -2/Research | Entered Quarantine 43169 | -2/Quarantine | Found Prototype Processor 43207 | -2/Quarantine | Identified Exp. Core Analyzer 43281 | -2/Quarantine | Found Alien Slashing Weapon 43281 | -2/Quarantine | Identified Sigix Broadsword 43327 | -2/Quarantine | Found Alien Artifact 43330 | -2/Quarantine | Found Alien Artifact 43387 | -2/Quarantine | Build established: Wizard-Scout 43561 | -2/Quarantine | Discovered new exit (range 15) 43576 | -2/Quarantine | Identified Dimensional Node Initializer 43576 | -2/Quarantine | Used Core Reset Matrix 43579 | -2/Quarantine | Discovered new exit (range 14) 43580 | -2/Quarantine | Detected hypermatrix surge 43580 | -2/Quarantine | Sensed 16 artifacts in vicinity 43581 | -2/Quarantine | Found Core Stripper 43597 | -2/Quarantine | Found Subatomic Replicator 43682 | -2/Quarantine | Spotted Fortress 43714 | -2/Quarantine | Discovered new exit (range 5) 43716 | -2/Quarantine | Identified exit to Section 7 43781 | -2/Quarantine | Entered Section 7 43782 | -2/Section 7 | Sensed 18 artifacts in vicinity 43805 | -2/Section 7 | Spotted S7 Guard 43829 | -2/Section 7 | Destroyed S7 Guard 43838 | -2/Section 7 | Found Integrated Thermoelectric Network 43838 | -2/Section 7 | Installed Integrated Thermoelectric Network, gained heat-energy exchange potential 43852 | -2/Section 7 | Found Spacefold Activator 44066 | -2/Section 7 | Initialized slip node 44075 | -2/Section 7 | Found Microwarp Drive 44266 | -2/Section 7 | Spotted S7 Guard 44288 | -2/Section 7 | Destroyed S7 Guard 44305 | -2/Section 7 | Found Core Regenerator 44506 | -2/Section 7 | Build established: Hacker-Scout 44547 | -2/Section 7 | Destroyed 7 combat bots 44803 | -2/Section 7 | Spotted Alpha 7 44837 | -2/Section 7 | Destroyed Alpha 7 44898 | -2/Section 7 | Spotted Striker 44898 | -2/Section 7 | Spotted Striker 44906 | -2/Section 7 | Found Sigix Shearcannon 44914 | -2/Section 7 | Destroyed Striker 44977 | -2/Section 7 | Spotted B-99 Colossus 44996 | -2/Section 7 | Build established: Hacker-Mutant 45024 | -2/Section 7 | Found LRC Armor 45024 | -2/Section 7 | Installed LRC Armor, increased core integrity (+250) 45026 | -2/Section 7 | Found LRC Insulator 45026 | -2/Section 7 | Installed LRC Insulator, gained EM resistance (25) 45087 | -2/Section 7 | Warped through subspace to slip node 45091 | -2/Section 7 | Found Hpw. Transdimensional Reconstructor 45190 | -2/Section 7 | Spotted Alpha 7 45215 | -2/Section 7 | Identified exit to Access 45231 | -2/Section 7 | Entered Access 45231 | -1/Access | Evolved 2 slots: Propulsion x1, Utility x1 45321 | -1/Access | Incoming investigation squad redirected 45523 | -1/Access | Search patrols dispatched 45875 | -1/Access | Repaired Cmb. Linear Gravjet? 45884 | -1/Access | Destroyed B-99 Colossus 45951 | -1/Access | Incoming investigation squad redirected 45960 | -1/Access | Found Unknown Device 45960 | -1/Access | Identified Launcher Loader 46005 | -1/Access | Found Unknown Launcher 46005 | -1/Access | Identified Gamma Bomb Array 46066 | -1/Access | Build established: Hacker-Ninja 46111 | -1/Access | Repaired Broken Cmb. Antigrav System 46149 | -1/Access | Repaired Cmb. Linear Gravjet 46268 | -1/Access | Incoming investigation squad redirected 46278 | -1/Access | Fabricated Quantum Capacitor? 46290 | -1/Access | P-80 Master assimilated allied Director 10c 46473 | -1/Access | Discovered new exit (range 8) 46650 | -1/Access | Entered Command 46769 | -1/Command | Build established: Machinist-Mutant 46887 | -1/Command | Spotted M Guard 46887 | -1/Command | Spotted M Guard 46887 | -1/Command | Spotted Combat Programmer 46910 | -1/Command | Spotted Combat Programmer 46939 | -1/Command | First assault squad dispatched 46940 | -1/Command | Destroyed Combat Programmer 46951 | -1/Command | Destroyed Combat Programmer 46959 | -1/Command | Incoming assault squad redirected 46972 | -1/Command | Found Prototype Energy Cannon 46983 | -1/Command | Identified EMDS 47009 | -1/Command | Destroyed M Guard 47018 | -1/Command | Destroyed M Guard 47018 | -1/Command | All MAIN.C guards destroyed 47234 | -1/Command | Found EMDS 47287 | -1/Command | System corruption reached 10% 47617 | -1/Command | Met MAIN.C 47628 | -1/Command | 0b10 Conduit disabled 47635 | -1/Command | Destroyed MAIN.C Shell 47636 | -1/Command | MAIN.C activated Command garrisons 47659 | -1/Command | Destroyed MAIN.C 47660 | -1/Command | Discovered new exit (range 34) 47660 | -1/Command | Discovered new exit (range 102) 47660 | -1/Command | Extracted map data and part IDs from MAIN.C's data core 47664 | -1/Command | Found Zero-point Reactor 47724 | -1/Command | Spotted B-99 Colossus 47766 | -1/Command | Build established: Alien-Mutant 47893 | -1/Command | Phase Generator disabled 48134 | -1/Command | Found Exp. System Purifier 48394 | -1/Command | Found Zero-point Reactor 48396 | -1/Command | Found Zero-point Reactor 48798 | -1/Command | Found Exp. Core Analyzer 49249 | -1/Command | Found Exp. Phase Shifter 49723 | -1/Command | Used Core Regenerator, restored core integrity (+287) 49969 | -1/Command | Found Corrupted AEGIS Remote Shield 50295 | -1/Command | Warped through subspace to slip node 50295 | -1/Command | Discovered new exit (range 4) 50300 | -1/Command | Entered Access_0 50301 | -1/Access_0 | Sensed 4 artifacts in vicinity 50301 | -1/Access_0 | Met Architect 50309 | -1/Access_0 | Architect warped through subspace 50310 | -1/Access_0 | Destroyed A8 50351 | -1/Access_0 | Architect warped through subspace 50364 | -1/Access_0 | Found Prototype Device 50364 | -1/Access_0 | Identified Desublimator 50389 | -1/Access_0 | Architect warped through subspace 50422 | -1/Access_0 | Architect warped through subspace 50425 | -1/Access_0 | Used Subatomic Replicator to replicate Sigix Shearcannon 50458 | -1/Access_0 | Subspace Access Node disabled 50460 | -1/Access_0 | Architect warped through subspace 50508 | -1/Access_0 | Architect warped through subspace 50525 | -1/Access_0 | A6 warped into view 50542 | -1/Access_0 | Destroyed A6 50569 | -1/Access_0 | Architect warped through subspace 50589 | -1/Access_0 | Subspace Access Node disabled 50602 | -1/Access_0 | Architect warped through subspace 50633 | -1/Access_0 | Architect warped through subspace 50656 | -1/Access_0 | Architect warped through subspace 50678 | -1/Access_0 | Architect warped through subspace 50700 | -1/Access_0 | Architect warped through subspace 50708 | -1/Access_0 | A5 warped into view 50718 | -1/Access_0 | Destroyed A5 50721 | -1/Access_0 | Architect warped through subspace 50776 | -1/Access_0 | Subspace Access Node disabled 50782 | -1/Access_0 | Architect warped through subspace 50864 | -1/Access_0 | Architect warped through subspace 50888 | -1/Access_0 | Subspace Access Node disabled 50907 | -1/Access_0 | Destroyed Architect 50908 | -1/Access_0 | Architect triggered a singularity event 50908 | -1/Access_0 | Extracted unknown sensor trigger ID from Architect's data core 50912 | -1/Access_0 | Found Hpw. Transdimensional Reconstructor 50912 | -1/Access_0 | Warped through subspace to slip node 50912 | -1/Access_0 | Discovered new exit (range 8) 50916 | *** | Escaped singularity! Last Messages --------------- 50904_ Quantum Shear penetrates Wall. 50904_ Quantum Shear penetrates Architect. 50907_ Quantum Shear penetrates Wall. 50907_ Quantum Shear penetrates Architect. 50907_ Architect: "If I can't win, no one wins!" 50907_ Architect destroyed. 50907_ Quantum Shear penetrates Wall. 50908_ A0_COM: Initiating irreversible singularity event. Goodbye. 50908_ Acquired data core, extracted unknown sensor trigger ID. 50909_ A0_COM: 10. 50910_ A0_COM: 9. 50911_ A0_COM: 8. 50912_ A0_COM: 7. 50912_ Acquired Hpw. Transdimensional Reconstructor. 50912_ Warped through subspace, drawn to slip node. 50912_ EXIT=FOUND 50913_ A0_COM: 6. 50914_ A0_COM: 5. 50915_ A0_COM: 4. 50916_ A0_COM: 3. Map ----- +----------------------------------------------------+ | | | | | | | | | | | | | | | | | | | | | | | | | | | | | | | | | ?????????????????????????????????????????????????? | | ?????????????????????????????????????????????????? | | ?????????????????????????????????????????????????? | | ?????????????????????????????????????????????????? | | ?????????????????????????????????????????????????? | | ?????????????????????????????????????????????????? | | ????????????????????????###??????????????????????? | | ???????????????????????## ##?????????????????????? | | ???????????????????????# #?????????????????????? | | ???????????????????????# @ #?????????????????????? | | ??????????????????????## #?????????????????????? | | ??????????????????????# #?????????????????????? | | ??????????????????????# ##?????????????????????? | | ??????????????????????## #?????????????????????? | | ??????????????????????# #?????????????????????? | | ??????????????????????# ##?????????????????????? | | ??????????????????????# < #?????????????????????? | | ??????????????????????# ##?????????????????????? | | ??????????????????????## #??????????????????????? | | ???????????????????????####??????????????????????? | | ?????????????????????????????????????????????????? | | ?????????????????????????????????????????????????? | | ?????????????????????????????????????????????????? | | ?????????????????????????????????????????????????? | | ?????????????????????????????????????????????????? | | ?????????????????????????????????????????????????? | | ?????????????????????????????????????????????????? | | ?????????????????????????????????????????????????? | | ?????????????????????????????????????????????????? | | ?????????????????????????????????????????????????? | | ?????????????????????????????????????????????????? | | ?????????????????????????????????????????????????? | | ?????????????????????????????????????????????????? | | ?????????????????????????????????????????????????? | +----------------------------------------------------+ Best States ------------- Heat Dissipation 109 Coolant Potential 100 Energy Generation 122 Energy Capacity 1530 Matter Stores 300 Matter Capacity 300 Sight Range 16 Robot Scan Range 20 Terrain Scan Range 20 Terrain Scan Density 1010 Jamming Range 16 Power Amplification 40 Additional Mass Support 25 Corruption Containment 8 Armor Coverage 825 Resistance: KI 20 Resistance: EM 100 Core Shielding 20 Utility Shielding 66 Weapon Shielding 66 Phase Shifting 20 Evasion (%) 87 Targeting Accuracy 32 Melee Accuracy 5 Core Analysis 8 Recoil Reduction 3 Offensive Hacking 48 Defensive Hacking 25 Authchip Count 5 Item Schematics ----------------- Cmb. Linear Gravjet | -2/Section 7 | Hacked Quantum Capacitor | -1/Access | Hacked Robot Schematics ------------------ None Fabricated ------------ Hcp. Storage Unit | x1 | -7/Factory | Authchip Cmb. Antigrav System | x2 | -7/Factory | Authchip Cmb. Antigrav System | x2 | -7/Factory | Authchip Lrg. Storage Unit | x1 | -7/Factory Adv. Hacking Suite | x1 | -7/Factory | Preloaded Combat Drone Bay | x1 | -6/Factory | Authchip Combat Drone Bay | x1 | -6/Factory | Authchip Weapon Mount | x2 | -6/Factory | Authchip Cmb. Antigrav System | x2 | -6/Factory | Authchip Cmb. Antigrav System | x2 | -6/Factory | Authchip Tri-rail Accelerator | x1 | -5/Factory | Authchip Tri-rail Accelerator | x1 | -5/Factory | Authchip Cmb. Linear Gravjet | x2 | -4/Armory | Authchip Cmb. Linear Gravjet | x2 | -4/Armory | Authchip Mni. Smartbomb Launcher | x1 | -4/Armory | Authchip Zero-point Reactor | x1 | -3/Research Zero-point Reactor | x1 | -3/Testing Exp. Terrain Scan Processor | x1 | -3/Testing Quantum Capacitor | x2 | -1/Access Alien Tech Used ----------------- Integrated Mediator Core Expander Sigix Broadsword Core Reset Matrix Integrated Thermoelectric Network Dimensional Node Initializer Microwarp Drive LRC Armor LRC Insulator Transdimensional Reconstructor Spacefold Activator Core Stripper Sigix Shearcannon Core Regenerator High-powered Transdimensional Reconstructor Subatomic Replicator Achievements -------------- Superinsulated Challenges ------------ None Game ------ Seed AutogunCoolantWeb Manual? 0 Play Time 12:00:45 Cumulative 524.7 hours Start 2023.11.26 @ 16:29:10 End 2023.11.29 @ 19:09:30 Sessions 9 Manual Loads 0 Difficulty Rogue Special Mode None Game No. 576 Rogue 489 Adventurer 87 Explorer 0 Win Type 6 Total 28 Types 8/0/15/1/1/0/3/0/0 Lore% 92 Gallery% 93 Achievement% 77 Wizard Run 0 Options --------- ASCII 0 Keyboard 1 Movement Numpad Keybinds 0 Fullscreen 1 Font 18/SmallcapsGlow Map View 76x50 Tactical HUD 1 Map Filters NONE Filters NONE Steam 1 RUN: e84d16cb-cd50-488b-9cee-e773bf18a53e